Workbook

Sheet CUADRO DE NECESIDADES
E1: UNIDAD DE GESTION EDUCATIVA LOCAL PUNO UE 311 | N1: DISTRITO | P1: =+VLOOKUP($E$4,'LISTADO IIEE'!D2:K2572,7,FALSE) -> ACORA
E2: CUADRO DE NECESIDADES 2019 | N2: N° | P2: =+VLOOKUP($E$4,'LISTADO IIEE'!$D$2:$M$888,10,FALSE) -> 13
P3: =SUM(P11:P81) -> 0 | Q3: =+VLOOKUP($E$4,'LISTADO IIEE'!$D$2:$K$888,8,FALSE) -> Rural | R3: =SUM(P13:P81) -> 0
A4: Codigo Modular del Centro de Costo | E4: 2060613 | G4: Numero de Celular | K4: Nº de Alum. Matriculados | M4: =+VLOOKUP(E4,'LISTADO IIEE'!D2:I2417,6,FALSE) -> 8
A6: Institucion Educativa | E6: =+VLOOKUP($E$4,'LISTADO IIEE'!$D$2:$E$888,2,FALSE) -> CENTRAL PUKARA | K6: Nº Docentes | M6: 0 | P6: 192
A8: Nombres y Apellidos del Director | G8: Correo Electronico | K8: Nº de Aulas | M8: 0 | O8: Aprobado | P8: 0 | Q8: - Aprobado | R8: =+Q8 -> - Aprobado
A10: CODIGO INTERNO | B10: Clasificador de Gasto | D10: CATALOGO SIGA | E10: DESCRIPCIÓN | I10: Unidad de medida | J10: Precio Estimado | K10: I DOTACION ENERO - JUNIO | M10: II DOTACION JULIO - DICIEMBRE | O10: CANTIDAD | P10: TOTAL | Q10: C.M | R10: OBSERVACIONES | S10: CLASIFICADOR
D11: =IF(A11="","",VLOOKUP(A11,CATALOGO,2,FALSE)) ->  | E11: =IF(A11="","",VLOOKUP(A11,CATALOGO,3,FALSE)) ->  | I11: =IF(A11="","",VLOOKUP(A11,CATALOGO,4,FALSE)) ->  | J11: =IF(D11="","",VLOOKUP(D11,CATALOGO!$B$2:$E$349,4,FALSE)) ->  | O11: =IF(A11="","",(L11+M11+N11+K11)) ->  | P11: =IF(J11="","",(J11*O11)) ->  | Q11: =+E$4 -> 2060613 | S11: =IF(A11="","",VLOOKUP(A11,CATALOGO,6,FALSE)) -> 
E12: =IF(A12="","",VLOOKUP(A12,CATALOGO,3,FALSE)) ->  | I12: =IF(A12="","",VLOOKUP(A12,CATALOGO,4,FALSE)) ->  | J12: =IF(D12="","",VLOOKUP(D12,CATALOGO!$B$2:$E$349,4,FALSE)) ->  | Q12: =+E$4 -> 2060613
J13: =IF(D13="","",VLOOKUP(D13,CATALOGO!$B$2:$E$349,4,FALSE)) ->  | Q13: 2060613
J14: =IF(D14="","",VLOOKUP(D14,CATALOGO!$B$2:$E$349,4,FALSE)) ->  | Q14: 2060613
J15: =IF(D15="","",VLOOKUP(D15,CATALOGO!$B$2:$E$349,4,FALSE)) ->  | Q15: 2060613
J16: =IF(D16="","",VLOOKUP(D16,CATALOGO!$B$2:$E$349,4,FALSE)) ->  | Q16: 2060613
J17: =IF(D17="","",VLOOKUP(D17,CATALOGO!$B$2:$E$349,4,FALSE)) ->  | Q17: 2060613
J18: =IF(D18="","",VLOOKUP(D18,CATALOGO!$B$2:$E$349,4,FALSE)) ->  | Q18: 2060613
J19: =IF(D19="","",VLOOKUP(D19,CATALOGO!$B$2:$E$349,4,FALSE)) ->  | Q19: 2060613
J20: =IF(D20="","",VLOOKUP(D20,CATALOGO!$B$2:$E$349,4,FALSE)) ->  | Q20: 2060613
J21: =IF(D21="","",VLOOKUP(D21,CATALOGO!$B$2:$E$349,4,FALSE)) ->  | Q21: 2060613
J22: =IF(D22="","",VLOOKUP(D22,CATALOGO!$B$2:$E$349,4,FALSE)) ->  | Q22: 2060613
J23: =IF(D23="","",VLOOKUP(D23,CATALOGO!$B$2:$E$349,4,FALSE)) ->  | Q23: 2060613
J24: =IF(D24="","",VLOOKUP(D24,CATALOGO!$B$2:$E$349,4,FALSE)) ->  | Q24: 2060613
J25: =IF(D25="","",VLOOKUP(D25,CATALOGO!$B$2:$E$349,4,FALSE)) ->  | Q25: 2060613
J26: =IF(D26="","",VLOOKUP(D26,CATALOGO!$B$2:$E$349,4,FALSE)) ->  | Q26: 2060613
J27: =IF(D27="","",VLOOKUP(D27,CATALOGO!$B$2:$E$349,4,FALSE)) ->  | Q27: 2060613
J28: =IF(D28="","",VLOOKUP(D28,CATALOGO!$B$2:$E$349,4,FALSE)) ->  | Q28: 2060613
J29: =IF(D29="","",VLOOKUP(D29,CATALOGO!$B$2:$E$349,4,FALSE)) ->  | Q29: 2060613
J30: =IF(D30="","",VLOOKUP(D30,CATALOGO!$B$2:$E$349,4,FALSE)) ->  | Q30: 2060613
J31: =IF(D31="","",VLOOKUP(D31,CATALOGO!$B$2:$E$349,4,FALSE)) ->  | Q31: 2060613
J32: =IF(D32="","",VLOOKUP(D32,CATALOGO!$B$2:$E$349,4,FALSE)) ->  | Q32: 2060613
J33: =IF(D33="","",VLOOKUP(D33,CATALOGO!$B$2:$E$349,4,FALSE)) ->  | Q33: 2060613
J34: =IF(D34="","",VLOOKUP(D34,CATALOGO!$B$2:$E$349,4,FALSE)) ->  | Q34: 2060613
J35: =IF(D35="","",VLOOKUP(D35,CATALOGO!$B$2:$E$349,4,FALSE)) ->  | Q35: 2060613
J36: =IF(D36="","",VLOOKUP(D36,CATALOGO!$B$2:$E$349,4,FALSE)) ->  | Q36: 2060613
J37: =IF(D37="","",VLOOKUP(D37,CATALOGO!$B$2:$E$349,4,FALSE)) ->  | Q37: 2060613
J38: =IF(D38="","",VLOOKUP(D38,CATALOGO!$B$2:$E$349,4,FALSE)) ->  | Q38: 2060613
J39: =IF(D39="","",VLOOKUP(D39,CATALOGO!$B$2:$E$349,4,FALSE)) ->  | Q39: 2060613
J40: =IF(D40="","",VLOOKUP(D40,CATALOGO!$B$2:$E$349,4,FALSE)) ->  | Q40: 2060613
J41: =IF(D41="","",VLOOKUP(D41,CATALOGO!$B$2:$E$349,4,FALSE)) ->  | Q41: 2060613
J42: =IF(D42="","",VLOOKUP(D42,CATALOGO!$B$2:$E$349,4,FALSE)) ->  | Q42: 2060613
D43: =IF(A43="","",VLOOKUP(A43,CATALOGO,2,FALSE)) ->  | E43: =IF(A43="","",VLOOKUP(A43,CATALOGO,3,FALSE)) ->  | I43: =IF(A43="","",VLOOKUP(A43,CATALOGO,4,FALSE)) ->  | J43: =IF(D43="","",VLOOKUP(D43,CATALOGO!$B$2:$E$349,4,FALSE)) ->  | Q43: 2060613 | S43: =IF(A43="","",VLOOKUP(A43,CATALOGO,6,FALSE)) -> 
J44: =IF(D44="","",VLOOKUP(D44,CATALOGO!$B$2:$E$349,4,FALSE)) ->  | Q44: 2060613
J45: =IF(D45="","",VLOOKUP(D45,CATALOGO!$B$2:$E$349,4,FALSE)) ->  | Q45: 2060613
J46: =IF(D46="","",VLOOKUP(D46,CATALOGO!$B$2:$E$349,4,FALSE)) ->  | Q46: 2060613
J47: =IF(D47="","",VLOOKUP(D47,CATALOGO!$B$2:$E$349,4,FALSE)) ->  | Q47: 2060613
J48: =IF(D48="","",VLOOKUP(D48,CATALOGO!$B$2:$E$349,4,FALSE)) ->  | Q48: 2060613
J49: =IF(D49="","",VLOOKUP(D49,CATALOGO!$B$2:$E$349,4,FALSE)) ->  | Q49: 2060613
J50: =IF(D50="","",VLOOKUP(D50,CATALOGO!$B$2:$E$349,4,FALSE)) ->  | Q50: 2060613
J51: =IF(D51="","",VLOOKUP(D51,CATALOGO!$B$2:$E$349,4,FALSE)) ->  | Q51: 2060613
J52: =IF(D52="","",VLOOKUP(D52,CATALOGO!$B$2:$E$349,4,FALSE)) ->  | Q52: 2060613
J53: =IF(D53="","",VLOOKUP(D53,CATALOGO!$B$2:$E$349,4,FALSE)) ->  | Q53: 2060613
J54: =IF(D54="","",VLOOKUP(D54,CATALOGO!$B$2:$E$349,4,FALSE)) ->  | Q54: 2060613
J55: =IF(D55="","",VLOOKUP(D55,CATALOGO!$B$2:$E$349,4,FALSE)) ->  | Q55: 2060613
J56: =IF(D56="","",VLOOKUP(D56,CATALOGO!$B$2:$E$349,4,FALSE)) ->  | Q56: 2060613
J57: =IF(D57="","",VLOOKUP(D57,CATALOGO!$B$2:$E$349,4,FALSE)) ->  | Q57: 2060613
J58: =IF(D58="","",VLOOKUP(D58,CATALOGO!$B$2:$E$349,4,FALSE)) ->  | Q58: 2060613
J59: =IF(D59="","",VLOOKUP(D59,CATALOGO!$B$2:$E$349,4,FALSE)) ->  | Q59: 2060613
J60: =IF(D60="","",VLOOKUP(D60,CATALOGO!$B$2:$E$349,4,FALSE)) ->  | Q60: 2060613
J61: =IF(D61="","",VLOOKUP(D61,CATALOGO!$B$2:$E$349,4,FALSE)) ->  | Q61: 2060613
J62: =IF(D62="","",VLOOKUP(D62,CATALOGO!$B$2:$E$349,4,FALSE)) ->  | Q62: 2060613
J63: =IF(D63="","",VLOOKUP(D63,CATALOGO!$B$2:$E$349,4,FALSE)) ->  | Q63: 2060613
J64: =IF(D64="","",VLOOKUP(D64,CATALOGO!$B$2:$E$349,4,FALSE)) ->  | Q64: 2060613
J65: =IF(D65="","",VLOOKUP(D65,CATALOGO!$B$2:$E$349,4,FALSE)) ->  | Q65: 2060613
J66: =IF(D66="","",VLOOKUP(D66,CATALOGO!$B$2:$E$349,4,FALSE)) ->  | Q66: 2060613
J67: =IF(D67="","",VLOOKUP(D67,CATALOGO!$B$2:$E$349,4,FALSE)) ->  | Q67: 2060613
J68: =IF(D68="","",VLOOKUP(D68,CATALOGO!$B$2:$E$349,4,FALSE)) ->  | Q68: 2060613
J69: =IF(D69="","",VLOOKUP(D69,CATALOGO!$B$2:$E$349,4,FALSE)) ->  | Q69: 2060613
J70: =IF(D70="","",VLOOKUP(D70,CATALOGO!$B$2:$E$349,4,FALSE)) ->  | Q70: 2060613 | S70: =IF(A70="","",VLOOKUP(A70,CATALOGO,6,FALSE)) -> 
J71: =IF(D71="","",VLOOKUP(D71,CATALOGO!$B$2:$E$349,4,FALSE)) ->  | Q71: 2060613 | S71: =IF(A71="","",VLOOKUP(A71,CATALOGO,6,FALSE)) -> 
J72: =IF(D72="","",VLOOKUP(D72,CATALOGO!$B$2:$E$349,4,FALSE)) ->  | Q72: 2060613
J73: =IF(D73="","",VLOOKUP(D73,CATALOGO!$B$2:$E$349,4,FALSE)) ->  | Q73: 2060613
J74: =IF(D74="","",VLOOKUP(D74,CATALOGO!$B$2:$E$349,4,FALSE)) ->  | Q74: 2060613
D75: =IF(A75="","",VLOOKUP(A75,CATALOGO,2,FALSE)) ->  | E75: =IF(A75="","",VLOOKUP(A75,CATALOGO,3,FALSE)) ->  | I75: =IF(A75="","",VLOOKUP(A75,CATALOGO,4,FALSE)) ->  | J75: =IF(D75="","",VLOOKUP(D75,CATALOGO!$B$2:$E$349,4,FALSE)) ->  | O75: =IF(A75="","",(L75+M75+N75+K75)) ->  | P75: =IF(J75="","",(J75*O75)) ->  | Q75: 2060613
J76: =IF(D76="","",VLOOKUP(D76,CATALOGO!$B$2:$E$349,4,FALSE)) ->  | Q76: =+E$4 -> 2060613
J77: =IF(D77="","",VLOOKUP(D77,CATALOGO!$B$2:$E$349,4,FALSE)) ->  | Q77: 2060613
J78: =IF(D78="","",VLOOKUP(D78,CATALOGO!$B$2:$E$349,4,FALSE)) ->  | Q78: 2060613
J79: =IF(D79="","",VLOOKUP(D79,CATALOGO!$B$2:$E$349,4,FALSE)) ->  | Q79: 2060613
J80: =IF(D80="","",VLOOKUP(D80,CATALOGO!$B$2:$E$349,4,FALSE)) ->  | Q80: 2060613
J81: =IF(D81="","",VLOOKUP(D81,CATALOGO!$B$2:$E$349,4,FALSE)) ->  | Q81: 2060613
P82: =SUM(P11:P81) -> 0

Sheet Hoja2 (hidden)
A1: 1. PUNO.
A2: 2. ACORA. | C2: 5
A3: 3. AMANTANI.
A4: 4. ATUNCOLLA.
A5: 5. CAPACHICA.
A6: 6. CHUCUITO.
A7: 7. COATA.
A8: 8. HUATA.
A9: 9. MAÑAZO.
A10: 10. PAUCARCOLLA.
A11: 11. PICHACANI (Laraqueri).
A12: 12. PLATERIA.
A13: 13. SAN ANTONIO (San Antonio de Esquilache).
A14: 14. TIQUILLACA.
A15: 15. VILQUE.

Sheet INSTRUCTIVO PARA LLENAR
D2: UNIDAD DE GESTION EDUCATIVA PUNO | H2: DISTRITO | J2: ATUNCOLLA
D3: CUADRO DE NECESIDADES 2018
B5: Centro de Costo Institucion Educativa | D5: 70000 | G5: 120
I6: 0
B7: Codigo Modular | D7: 70020041 | G7: 3 | J7: 123
B9: Nombres y Apellidos DIRECTOR(e)(a) | D9: JUAN PEREZ PEREZ | G9: 4 | J9: =SUM(J12:J81) -> 
B11: CODIGO INTERNO | C11: CATALOGO SIGA | D11: DESCRIPCIÓN | E11: Unidad de medida | F11: Precio Estimado | G11: I DOTACION | H11: II DOTACION | I11: CANTIDAD | J11: TOTAL | K11: OBSERVACIONES | L11: CLASIFICADOR
B12: 1 | C12: =IF(B12="","",VLOOKUP(B12,CATALOGO,2,FALSE)) -> 133000140205 | D12: =IF(B12="","",VLOOKUP(B12,CATALOGO,3,FALSE)) -> AMBIENTADOR EN PASTILLA PARA BAÑO X 40 gr APROX. | E12: =IF(B12="","",VLOOKUP(B12,CATALOGO,4,FALSE)) -> UNIDAD | F12: =IF(B12="","",VLOOKUP(B12,CATALOGO,5,FALSE)) -> 7 | I12: =IF(B12="","",(#REF!+G12+H12+#REF!)) ->  | J12: =IF(F12="","",(F12*I12)) ->  | L12: =IF(B12="","",VLOOKUP(B12,CATALOGO,6,FALSE)) -> 0
B13: 2 | C13: 133000140079 | D13: AMBIENTADOR EN SPRAY X 360 mL | E13: UNIDAD | F13: 7 | I13: =IF(B13="","",(#REF!+G13+H13+#REF!)) -> 
B14: 3 | C14: 133000140077 | D14: AMBIENTADOR EN SPRAY X 400 mL APROX. | E14: UNIDAD | F14: 7 | I14: =IF(B14="","",(#REF!+G14+H14+#REF!)) -> 
B15: 4 | C15: 133000140091 | D15: AMBIENTADOR EN SPRAY X 650 mL | E15: UNIDAD | F15: 7 | I15: =IF(B15="","",(#REF!+G15+H15+#REF!)) -> 
B16: 5 | C16: 646100080005 | D16: ANTISARRO PARA WATER | E16: UNIDAD | F16: 3.2 | I16: =IF(B16="","",(#REF!+G16+H16+#REF!)) -> 
B17: 6 | C17: 710600010012 | D17: ARCHIVADOR DE CARTON CON PALANCA LOMO ANCHO TAMAÑO OFICIO | E17: UNIDAD | F17: 3.658 | I17: =IF(B17="","",(#REF!+G17+H17+#REF!)) -> 
B18: 7 | C18: 716000010022 | D18: BOLIGRAFO (LAPICERO) DE TINTA LIQUIDA PUNTA FINA COLOR AZUL | E18: UNIDAD | F18: 3.3 | I18: =IF(B18="","",(#REF!+G18+H18+#REF!)) -> 
B19: 8 | C19: 716000010001 | D19: BOLIGRAFO (LAPICERO) DE TINTA LIQUIDA PUNTA FINA COLOR NEGRO | E19: UNIDAD | F19: 2.3954 | I19: =IF(B19="","",(#REF!+G19+H19+#REF!)) -> 
B20: 9 | C20: 716000010002 | D20: BOLIGRAFO (LAPICERO) DE TINTA LIQUIDA PUNTA FINA COLOR ROJO | E20: UNIDAD | F20: 3.3 | I20: =IF(B20="","",(#REF!+G20+H20+#REF!)) -> 
B21: 10 | C21: 716000010212 | D21: BOLIGRAFO (LAPICERO) DE TINTA SECA PUNTA MEDIA COLOR AZUL | E21: UNIDAD | F21: 0.4 | I21: =IF(B21="","",(#REF!+G21+H21+#REF!)) -> 
B22: 11 | C22: 716000010213 | D22: BOLIGRAFO (LAPICERO) DE TINTA SECA PUNTA MEDIA COLOR NEGRO | E22: UNIDAD | F22: 0.4 | I22: =IF(B22="","",(#REF!+G22+H22+#REF!)) -> 
B23: 12 | C23: 716000010214 | D23: BOLIGRAFO (LAPICERO) DE TINTA SECA PUNTA MEDIA COLOR ROJO | E23: UNIDAD | F23: 0.4 | I23: =IF(B23="","",(#REF!+G23+H23+#REF!)) -> 
B24: 13 | C24: 711100010008 | D24: BORRADOR MIXTO TAMAÑO GRANDE | E24: UNIDAD | F24: 0.8 | I24: =IF(B24="","",(#REF!+G24+H24+#REF!)) -> 
B25: 14 | C25: 717300110160 | D25: CARTON PRENSADO N° 8 DE 70 cm X 100 cm | E25: UNIDAD | F25: 8 | I25: =IF(B25="","",(#REF!+G25+H25+#REF!)) -> 
B26: 15 | C26: 717300110328 | D26: CARTULINA CORRUGADA 100 g DE 50 cm X 70 cm DE COLOR | E26: UNIDAD | F26: 0.235924 | I26: =IF(B26="","",(#REF!+G26+H26+#REF!)) -> 
B27: 16 | C27: 717300110043 | D27: CARTULINA PLASTIFICADA DE 50 cm X 60 cm | E27: UNIDAD | F27: 0.235924 | I27: =IF(B27="","",(#REF!+G27+H27+#REF!)) -> 
B28: 17 | C28: 717300110094 | D28: CARTULINA PLASTIFICADA DE 50 cm X 65 cm COLOR AZUL | E28: UNIDAD | F28: 0.235924 | I28: =IF(B28="","",(#REF!+G28+H28+#REF!)) -> 
B29: 18 | C29: 717300110188 | D29: CARTULINA SATINADA 150 g DE 70 cm X 100 cm | E29: UNIDAD | F29: 0.235924 | I29: =IF(B29="","",(#REF!+G29+H29+#REF!)) -> 
B30: 19 | C30: 717300110032 | D30: CARTULINA SATINADA 150 g DE 50 cm X 65 cm | E30: UNIDAD | F30: 0.235924 | I30: =IF(B30="","",(#REF!+G30+H30+#REF!)) -> 
B31: 20 | C31: 717300110332 | D31: CARTULINA SATINADA 150 g DE 50 cm X 65 cm COLOR BLANCO | E31: CIENTO | F31: 3 | I31: =IF(B31="","",(#REF!+G31+H31+#REF!)) -> 
B32: 21 | C32: 717300110097 | D32: CARTULINA SATINADA 150 g DE 50 cm X 65 cm COLOR BLANCO | E32: UNIDAD | F32: 0.235924 | I32: =IF(B32="","",(#REF!+G32+H32+#REF!)) -> 
B33: 22 | C33: 717300110165 | D33: CARTULINA SATINADA 150 g DE 50 cm X 65 cm COLOR NEGRO | E33: UNIDAD | F33: 0.235924 | I33: =IF(B33="","",(#REF!+G33+H33+#REF!)) -> 
B34: 23 | C34: 717300110042 | D34: CARTULINA SATINADA 150 g DE 70 cm X 100 cm COLOR BLANCO | E34: UNIDAD | F34: 0.235924 | I34: =IF(B34="","",(#REF!+G34+H34+#REF!)) -> 
B35: 24 | C35: 717300110089 | D35: CARTULINA SIMPLE 120 g DE 70 cm X 100 cm COLOR BLANCO | E35: UNIDAD | F35: 0.235924 | I35: =IF(B35="","",(#REF!+G35+H35+#REF!)) -> 
B36: 25 | C36: 717300110329 | D36: CARTULINA SIMPLE 140 g 50 cm X 65 cm COLOR BLANCO | E36: UNIDAD | F36: 0.235924 | I36: =IF(B36="","",(#REF!+G36+H36+#REF!)) -> 
B37: 26 | C37: 717300110331 | D37: CARTULINA SIMPLE 140 g 50 cm X 65 cm COLOR NEGRO | E37: UNIDAD | F37: 0.235924 | I37: =IF(B37="","",(#REF!+G37+H37+#REF!)) -> 
B38: 27 | C38: 717300110403 | D38: CARTULINA SIMPLE 140 g 50 cm X 65 cm COLOR RAL 1016 | E38: UNIDAD | F38: 0.235924 | I38: =IF(B38="","",(#REF!+G38+H38+#REF!)) -> 
B39: 28 | C39: 717300110404 | D39: CARTULINA SIMPLE 140 g 50 cm X 65 cm COLOR RAL 5015 | E39: UNIDAD | F39: 0.235924 | I39: =IF(B39="","",(#REF!+G39+H39+#REF!)) -> 
B40: 29 | C40: 717300110405 | D40: CARTULINA SIMPLE 140 g 50 cm X 65 cm COLOR RAL 6001 | E40: UNIDAD | F40: 0.235924 | I40: =IF(B40="","",(#REF!+G40+H40+#REF!)) -> 
B41: 30 | C41: 717300110330 | D41: CARTULINA SIMPLE 140 g 50 cm X 65 cm DE COLORES | E41: UNIDAD | F41: 0.235924 | I41: =IF(B41="","",(#REF!+G41+H41+#REF!)) -> 
B42: 31 | C42: 717300110270 | D42: CARTULINA SIMPLE 145 g DE 50 cm X 56 cm COLOR AMARILLO | E42: UNIDAD | F42: 0.235924 | I42: =IF(B42="","",(#REF!+G42+H42+#REF!)) -> 
B43: 32 | C43: 717300110266 | D43: CARTULINA SIMPLE 145 g DE 50 cm X 56 cm COLOR BLANCO | E43: UNIDAD | F43: 0.235924 | I43: =IF(B43="","",(#REF!+G43+H43+#REF!)) -> 
B44: 33 | C44: 717300110268 | D44: CARTULINA SIMPLE 145 g DE 50 cm X 56 cm COLOR CELESTE | E44: UNIDAD | F44: 0.235924 | I44: =IF(B44="","",(#REF!+G44+H44+#REF!)) ->  | J44: =IF(F44="","",(F44*I44)) -> 
B45: 34 | C45: 717300110267 | D45: CARTULINA SIMPLE 145 g DE 50 cm X 56 cm COLOR ROSADO | E45: UNIDAD | F45: 0.235924 | I45: =IF(B45="","",(#REF!+G45+H45+#REF!)) -> 
B46: 35 | C46: 717300110269 | D46: CARTULINA SIMPLE 145 g DE 50 cm X 56 cm COLOR VERDE | E46: UNIDAD | F46: 0.235924 | I46: =IF(B46="","",(#REF!+G46+H46+#REF!)) -> 
B47: 36 | C47: 717300110337 | D47: CARTULINA SIMPLE 145 g DE 50 cm X 65 cm COLOR BLANCA | E47: UNIDAD | F47: 0.235924 | I47: =IF(B47="","",(#REF!+G47+H47+#REF!)) -> 
B48: 37 | C48: 717300110363 | D48: CARTULINA SIMPLE 145 g TAMAÑO A4 | E48: CIENTO | F48: 3 | I48: =IF(B48="","",(#REF!+G48+H48+#REF!)) -> 
B49: 38 | C49: 717300110342 | D49: CARTULINA SIMPLE 150 g 70 cm X 100 cm COLOR AMARILLO | E49: UNIDAD | F49: 0.235924 | I49: =IF(B49="","",(#REF!+G49+H49+#REF!)) -> 
B50: 39 | C50: 717300110002 | D50: CARTULINA SIMPLE 150 g DE 50 cm X 65 cm | E50: UNIDAD | F50: 0.235924 | I50: =IF(B50="","",(#REF!+G50+H50+#REF!)) -> 
B51: 40 | C51: 717300110034 | D51: CARTULINA SIMPLE 150 g DE 50 cm X 65 cm COLOR AMARILLO | E51: UNIDAD | F51: 0.235924 | I51: =IF(B51="","",(#REF!+G51+H51+#REF!)) -> 
B52: 41 | C52: 717300110226 | D52: CARTULINA SIMPLE 150 g DE 50 cm X 65 cm COLOR AZUL | E52: UNIDAD | F52: 0.235924 | I52: =IF(B52="","",(#REF!+G52+H52+#REF!)) -> 
B53: 42 | C53: 717300110035 | D53: CARTULINA SIMPLE 150 g DE 50 cm X 65 cm COLOR BLANCO | E53: UNIDAD | F53: 0.235924 | I53: =IF(B53="","",(#REF!+G53+H53+#REF!)) -> 
B54: 43 | C54: 717300110036 | D54: CARTULINA SIMPLE 150 g DE 50 cm X 65 cm COLOR CELESTE | E54: UNIDAD | F54: 0.235924 | I54: =IF(B54="","",(#REF!+G54+H54+#REF!)) -> 
B55: 44 | C55: 717300110313 | D55: CARTULINA SIMPLE 150 g DE 50 cm X 65 cm COLOR MARRÓN | E55: UNIDAD | F55: 0.235924 | I55: =IF(B55="","",(#REF!+G55+H55+#REF!)) -> 
B56: 45 | C56: 717300110135 | D56: CARTULINA SIMPLE 150 g DE 50 cm X 65 cm COLOR ROJO | E56: UNIDAD | F56: 0.235924 | I56: =IF(B56="","",(#REF!+G56+H56+#REF!)) -> 
B57: 46 | C57: 717300110092 | D57: CARTULINA SIMPLE 150 g DE 50 cm X 65 cm COLOR ROSADO | E57: UNIDAD | F57: 0.235924 | I57: =IF(B57="","",(#REF!+G57+H57+#REF!)) -> 
B58: 47 | C58: 717300110091 | D58: CARTULINA SIMPLE 150 g DE 50 cm X 65 cm COLOR VERDE | E58: UNIDAD | F58: 0.235924 | I58: =IF(B58="","",(#REF!+G58+H58+#REF!)) -> 
B59: 48 | C59: 717300110285 | D59: CARTULINA SIMPLE 150 g DE 70 cm X 100 cm COLOR BLANCO | E59: CIENTO | F59: 3 | I59: =IF(B59="","",(#REF!+G59+H59+#REF!)) -> 
B60: 49 | C60: 717300110019 | D60: CARTULINA SIMPLE 150 g TAMAÑO A4 | E60: CIENTO | F60: 3 | I60: =IF(B60="","",(#REF!+G60+H60+#REF!)) -> 
B61: 50 | C61: 717300110125 | D61: CARTULINA SIMPLE 150 g TAMAÑO A5 COLOR AMARILLO | E61: UNIDAD | F61: 0.235924 | I61: =IF(B61="","",(#REF!+G61+H61+#REF!)) -> 
B62: 51 | C62: 717300110121 | D62: CARTULINA SIMPLE 150 g TAMAÑO A5 COLOR BLANCO | E62: UNIDAD | F62: 0.235924 | I62: =IF(B62="","",(#REF!+G62+H62+#REF!)) -> 
B63: 52 | C63: 717300110123 | D63: CARTULINA SIMPLE 150 g TAMAÑO A5 COLOR CELESTE | E63: UNIDAD | F63: 0.235924 | I63: =IF(B63="","",(#REF!+G63+H63+#REF!)) -> 
B64: 53 | C64: 717300110122 | D64: CARTULINA SIMPLE 150 g TAMAÑO A5 COLOR ROSADO | E64: UNIDAD | F64: 0.235924 | I64: =IF(B64="","",(#REF!+G64+H64+#REF!)) -> 
B65: 54 | C65: 717300110124 | D65: CARTULINA SIMPLE 150 g TAMAÑO A5 COLOR VERDE | E65: UNIDAD | F65: 0.235924 | I65: =IF(B65="","",(#REF!+G65+H65+#REF!)) -> 
B66: 55 | C66: 717300110039 | D66: CARTULINA SIMPLE 160 g DE 50 cm X 65 cm | E66: UNIDAD | F66: 0.235924 | I66: =IF(B66="","",(#REF!+G66+H66+#REF!)) -> 
B67: 56 | C67: 717300110013 | D67: CARTULINA SIMPLE 160 g DE 61 cm X 86 cm | E67: UNIDAD | F67: 0.235924 | I67: =IF(B67="","",(#REF!+G67+H67+#REF!)) -> 
B68: 57 | C68: 717300110070 | D68: CARTULINA SIMPLE 160 g DE 65 cm X 50 cm COLOR NEGRO | E68: UNIDAD | F68: 0.235924 | I68: =IF(B68="","",(#REF!+G68+H68+#REF!)) -> 
I69: =IF(B69="","",(#REF!+G69+H69+#REF!)) -> 
I70: =IF(B70="","",(#REF!+G70+H70+#REF!)) -> 
I71: =IF(B71="","",(#REF!+G71+H71+#REF!)) -> 
I72: =IF(B72="","",(#REF!+G72+H72+#REF!)) -> 
I73: =IF(B73="","",(#REF!+G73+H73+#REF!)) -> 
I74: =IF(B74="","",(#REF!+G74+H74+#REF!)) -> 
I75: =IF(B75="","",(#REF!+G75+H75+#REF!)) -> 
C76: =IF(B76="","",VLOOKUP(B76,CATALOGO,2,FALSE)) ->  | D76: =IF(B76="","",VLOOKUP(B76,CATALOGO,3,FALSE)) ->  | E76: =IF(B76="","",VLOOKUP(B76,CATALOGO,4,FALSE)) ->  | F76: =IF(B76="","",VLOOKUP(B76,CATALOGO,5,FALSE)) ->  | I76: =IF(B76="","",(#REF!+G76+H76+#REF!)) ->  | J76: =IF(F76="","",(F76*I76)) -> 
I77: =IF(B77="","",(#REF!+G77+H77+#REF!)) -> 
I78: =IF(B78="","",(#REF!+G78+H78+#REF!)) -> 
I79: =IF(B79="","",(#REF!+G79+H79+#REF!)) -> 

Sheet CATALOGO
A1: N° | B1: CODIGO | C1: NOMBRE DE ITEM | D1: UNIDAD | E1: PRECIO ESTIMADO | F1: CLASIFICADOR
A2: 1 | B2: 133000140205 | C2: AMBIENTADOR EN PASTILLA PARA BAÑO X 40 gr APROX. | D2: UNIDAD | E2: 7
A3: 2 | B3: 133000140079 | C3: AMBIENTADOR EN SPRAY X 360 mL | D3: UNIDAD | E3: 7 | F3: 2.3. 1 5. 3 1
A4: 3 | B4: 133000140077 | C4: AMBIENTADOR EN SPRAY X 400 mL APROX. | D4: UNIDAD | E4: 7 | F4: 2.3. 1 5. 3 1
A5: 4 | B5: 133000140091 | C5: AMBIENTADOR EN SPRAY X 650 mL | D5: UNIDAD | E5: 7 | F5: 2.3. 1 5. 3 1
A6: 5 | B6: 646100080005 | C6: ANTISARRO PARA WATER | D6: UNIDAD | E6: 3.2 | F6: 2.3. 1 5. 3 1
A7: 6 | B7: 710600010012 | C7: ARCHIVADOR DE CARTON CON PALANCA LOMO ANCHO TAMAÑO OFICIO | D7: UNIDAD | E7: 3.658 | F7: 2.3. 1 5. 3 1
A8: 7 | B8: 716000010022 | C8: BOLIGRAFO (LAPICERO) DE TINTA LIQUIDA PUNTA FINA COLOR AZUL | D8: UNIDAD | E8: 3.3 | F8: 2.3. 1 5. 3 1
A9: 8 | B9: 716000010001 | C9: BOLIGRAFO (LAPICERO) DE TINTA LIQUIDA PUNTA FINA COLOR NEGRO | D9: UNIDAD | E9: 2.3954 | F9: 2.3. 1 5. 3 1
A10: 9 | B10: 716000010002 | C10: BOLIGRAFO (LAPICERO) DE TINTA LIQUIDA PUNTA FINA COLOR ROJO | D10: UNIDAD | E10: 3.3 | F10: 2.3. 1 5. 3 1
A11: 10 | B11: 716000010212 | C11: BOLIGRAFO (LAPICERO) DE TINTA SECA PUNTA MEDIA COLOR AZUL | D11: UNIDAD | E11: 0.4 | F11: 2.3. 1 5. 3 1
A12: 11 | B12: 716000010213 | C12: BOLIGRAFO (LAPICERO) DE TINTA SECA PUNTA MEDIA COLOR NEGRO | D12: UNIDAD | E12: 0.4 | F12: 2.3. 1 5. 3 1
A13: 12 | B13: 716000010214 | C13: BOLIGRAFO (LAPICERO) DE TINTA SECA PUNTA MEDIA COLOR ROJO | D13: UNIDAD | E13: 0.4 | F13: 2.3. 1 5. 3 1
A14: 13 | B14: 711100010008 | C14: BORRADOR MIXTO TAMAÑO GRANDE | D14: UNIDAD | E14: 0.8 | F14: 2.3. 1 5. 1 2
A15: 14 | B15: 717300110160 | C15: CARTON PRENSADO N° 8 DE 70 cm X 100 cm | D15: UNIDAD | E15: 8 | F15: 2.3. 1 3. 1 1
A16: 15 | B16: 717300110328 | C16: CARTULINA CORRUGADA 100 g DE 50 cm X 70 cm DE COLOR | D16: UNIDAD | E16: 0.235924
A17: 16 | B17: 717300110043 | C17: CARTULINA PLASTIFICADA DE 50 cm X 60 cm | D17: UNIDAD | E17: 0.235924 | F17: 2.3. 1 9. 1 2
A18: 17 | B18: 717300110094 | C18: CARTULINA PLASTIFICADA DE 50 cm X 65 cm COLOR AZUL | D18: UNIDAD | E18: 0.235924 | F18: 2.3. 1 9. 1 2
A19: 18 | B19: 717300110188 | C19: CARTULINA SATINADA 150 g DE 70 cm X 100 cm | D19: UNIDAD | E19: 0.235924 | F19: 2.3. 1 9. 1 2
A20: 19 | B20: 717300110032 | C20: CARTULINA SATINADA 150 g DE 50 cm X 65 cm | D20: UNIDAD | E20: 0.235924 | F20: 2.3. 1 9. 1 2
A21: 20 | B21: 717300110332 | C21: CARTULINA SATINADA 150 g DE 50 cm X 65 cm COLOR BLANCO | D21: CIENTO | E21: 3 | F21: 2.3. 1 9. 1 2
A22: 21 | B22: 717300110097 | C22: CARTULINA SATINADA 150 g DE 50 cm X 65 cm COLOR BLANCO | D22: UNIDAD | E22: 0.235924 | F22: 2.3. 1 9. 1 2
A23: 22 | B23: 717300110165 | C23: CARTULINA SATINADA 150 g DE 50 cm X 65 cm COLOR NEGRO | D23: UNIDAD | E23: 0.235924 | F23: 2.3. 1 9. 1 2
A24: 23 | B24: 717300110042 | C24: CARTULINA SATINADA 150 g DE 70 cm X 100 cm COLOR BLANCO | D24: UNIDAD | E24: 0.235924 | F24: 2.3. 1 9. 1 2
A25: 24 | B25: 717300110089 | C25: CARTULINA SIMPLE 120 g DE 70 cm X 100 cm COLOR BLANCO | D25: UNIDAD | E25: 0.235924
A26: 25 | B26: 717300110329 | C26: CARTULINA SIMPLE 140 g 50 cm X 65 cm COLOR BLANCO | D26: UNIDAD | E26: 0.235924 | F26: 2.3. 1 5. 1 2
A27: 26 | B27: 717300110331 | C27: CARTULINA SIMPLE 140 g 50 cm X 65 cm COLOR NEGRO | D27: UNIDAD | E27: 0.235924 | F27: 2.3. 1 5. 1 2
A28: 27 | B28: 717300110403 | C28: CARTULINA SIMPLE 140 g 50 cm X 65 cm COLOR RAL 1016 | D28: UNIDAD | E28: 0.235924 | F28: 2.3. 1 5. 1 2
A29: 28 | B29: 717300110404 | C29: CARTULINA SIMPLE 140 g 50 cm X 65 cm COLOR RAL 5015 | D29: UNIDAD | E29: 0.235924 | F29: 2.3. 1 5. 1 2
A30: 29 | B30: 717300110405 | C30: CARTULINA SIMPLE 140 g 50 cm X 65 cm COLOR RAL 6001 | D30: UNIDAD | E30: 0.235924 | F30: 2.3. 1 5. 1 2
A31: 30 | B31: 717300110330 | C31: CARTULINA SIMPLE 140 g 50 cm X 65 cm DE COLORES | D31: UNIDAD | E31: 0.235924 | F31: 2.3. 1 5. 1 2
A32: 31 | B32: 717300110270 | C32: CARTULINA SIMPLE 145 g DE 50 cm X 56 cm COLOR AMARILLO | D32: UNIDAD | E32: 0.235924 | F32: 2.3. 1 5. 1 2
A33: 32 | B33: 717300110266 | C33: CARTULINA SIMPLE 145 g DE 50 cm X 56 cm COLOR BLANCO | D33: UNIDAD | E33: 0.235924 | F33: 2.3. 1 5. 1 2
A34: 33 | B34: 717300110268 | C34: CARTULINA SIMPLE 145 g DE 50 cm X 56 cm COLOR CELESTE | D34: UNIDAD | E34: 0.235924 | F34: 2.3. 1 5. 1 2
A35: 34 | B35: 717300110267 | C35: CARTULINA SIMPLE 145 g DE 50 cm X 56 cm COLOR ROSADO | D35: UNIDAD | E35: 0.235924 | F35: 2.3. 1 5. 1 2
A36: 35 | B36: 717300110269 | C36: CARTULINA SIMPLE 145 g DE 50 cm X 56 cm COLOR VERDE | D36: UNIDAD | E36: 0.235924 | F36: 2.3. 1 5. 1 2
A37: 36 | B37: 717300110337 | C37: CARTULINA SIMPLE 145 g DE 50 cm X 65 cm COLOR BLANCA | D37: UNIDAD | E37: 0.235924 | F37: 2.3. 1 5. 1 2
A38: 37 | B38: 717300110363 | C38: CARTULINA SIMPLE 145 g TAMAÑO A4 | D38: CIENTO | E38: 3 | F38: 2.3. 1 5. 1 2
A39: 38 | B39: 717300110342 | C39: CARTULINA SIMPLE 150 g 70 cm X 100 cm COLOR AMARILLO | D39: UNIDAD | E39: 0.235924 | F39: 2.3. 1 5. 1 2
A40: 39 | B40: 717300110002 | C40: CARTULINA SIMPLE 150 g DE 50 cm X 65 cm | D40: UNIDAD | E40: 0.235924 | F40: 2.3. 1 5. 1 2
A41: 40 | B41: 717300110034 | C41: CARTULINA SIMPLE 150 g DE 50 cm X 65 cm COLOR AMARILLO | D41: UNIDAD | E41: 0.235924 | F41: 2.3. 1 5. 1 2
A42: 41 | B42: 717300110226 | C42: CARTULINA SIMPLE 150 g DE 50 cm X 65 cm COLOR AZUL | D42: UNIDAD | E42: 0.235924 | F42: 2.3. 1 5. 1 2
A43: 42 | B43: 717300110035 | C43: CARTULINA SIMPLE 150 g DE 50 cm X 65 cm COLOR BLANCO | D43: UNIDAD | E43: 0.235924 | F43: 2.3. 1 5. 1 2
A44: 43 | B44: 717300110036 | C44: CARTULINA SIMPLE 150 g DE 50 cm X 65 cm COLOR CELESTE | D44: UNIDAD | E44: 0.235924 | F44: 2.3. 1 5. 1 2
A45: 44 | B45: 717300110313 | C45: CARTULINA SIMPLE 150 g DE 50 cm X 65 cm COLOR MARRÓN | D45: UNIDAD | E45: 0.235924 | F45: 2.3. 1 5. 1 2
A46: 45 | B46: 717300110135 | C46: CARTULINA SIMPLE 150 g DE 50 cm X 65 cm COLOR ROJO | D46: UNIDAD | E46: 0.235924 | F46: 2.3. 1 5. 1 2
A47: 46 | B47: 717300110092 | C47: CARTULINA SIMPLE 150 g DE 50 cm X 65 cm COLOR ROSADO | D47: UNIDAD | E47: 0.235924 | F47: 2.3. 1 5. 1 2
A48: 47 | B48: 717300110091 | C48: CARTULINA SIMPLE 150 g DE 50 cm X 65 cm COLOR VERDE | D48: UNIDAD | E48: 0.235924 | F48: 2.3. 1 5. 1 2
A49: 48 | B49: 717300110285 | C49: CARTULINA SIMPLE 150 g DE 70 cm X 100 cm COLOR BLANCO | D49: CIENTO | E49: 3 | F49: 2.3. 1 5. 1 2
A50: 49 | B50: 717300110019 | C50: CARTULINA SIMPLE 150 g TAMAÑO A4 | D50: CIENTO | E50: 3 | F50: 2.3. 1 5. 1 2
A51: 50 | B51: 717300110125 | C51: CARTULINA SIMPLE 150 g TAMAÑO A5 COLOR AMARILLO | D51: UNIDAD | E51: 0.235924 | F51: 2.3. 1 5. 1 2
A52: 51 | B52: 717300110121 | C52: CARTULINA SIMPLE 150 g TAMAÑO A5 COLOR BLANCO | D52: UNIDAD | E52: 0.235924 | F52: 2.3. 1 5. 1 2
A53: 52 | B53: 717300110123 | C53: CARTULINA SIMPLE 150 g TAMAÑO A5 COLOR CELESTE | D53: UNIDAD | E53: 0.235924 | F53: 2.3. 1 5. 1 2
A54: 53 | B54: 717300110122 | C54: CARTULINA SIMPLE 150 g TAMAÑO A5 COLOR ROSADO | D54: UNIDAD | E54: 0.235924 | F54: 2.3. 1 5. 1 2
A55: 54 | B55: 717300110124 | C55: CARTULINA SIMPLE 150 g TAMAÑO A5 COLOR VERDE | D55: UNIDAD | E55: 0.235924 | F55: 2.3. 1 5. 1 2
A56: 55 | B56: 717300110039 | C56: CARTULINA SIMPLE 160 g DE 50 cm X 65 cm | D56: UNIDAD | E56: 0.235924 | F56: 2.3. 1 5. 1 2
A57: 56 | B57: 717300110013 | C57: CARTULINA SIMPLE 160 g DE 61 cm X 86 cm | D57: UNIDAD | E57: 0.235924 | F57: 2.3. 1 5. 1 2
A58: 57 | B58: 717300110070 | C58: CARTULINA SIMPLE 160 g DE 65 cm X 50 cm COLOR NEGRO | D58: UNIDAD | E58: 0.235924 | F58: 2.3. 1 5. 1 2
A59: 58 | B59: 717300110009 | C59: CARTULINA SIMPLE 165 g DE 65 cm X 50 cm | D59: UNIDAD | E59: 0.235924 | F59: 2.3. 1 5. 1 2
A60: 59 | B60: 717300110075 | C60: CARTULINA SIMPLE 165 g DE 65 cm X 50 cm COLOR BLANCO | D60: UNIDAD | E60: 0.235924 | F60: 2.3. 1 5. 1 2
A61: 60 | B61: 717300110086 | C61: CARTULINA SIMPLE 170 g DE 70 cm X 100 cm COLOR CELESTE | D61: CIENTO | E61: 3 | F61: 2.3. 1 5. 1 2
A62: 61 | B62: 717300110051 | C62: CARTULINA SIMPLE 180 g DE 100 cm X 70 cm COLOR ROSADO | D62: UNIDAD | E62: 0.235924 | F62: 2.3. 1 5. 1 2
A63: 62 | B63: 717300110098 | C63: CARTULINA SIMPLE 180 g DE 50 cm X 65 cm COLOR CELESTE | D63: UNIDAD | E63: 0.235924 | F63: 2.3. 1 5. 1 2
A64: 63 | B64: 717300110099 | C64: CARTULINA SIMPLE 180 g DE 50 cm X 65 cm COLOR ROSADO | D64: UNIDAD | E64: 0.235924 | F64: 2.3. 1 5. 1 2
A65: 64 | B65: 717300110014 | C65: CARTULINA SIMPLE 180 g DE 61 cm X 86 cm | D65: UNIDAD | E65: 0.235924 | F65: 2.3. 1 5. 1 2
A66: 65 | B66: 717300110095 | C66: CARTULINA SIMPLE 180 g DE 69 cm x 89 cm COLOR CELESTE | D66: EMPAQUE X 500 | E66: 0.235924 | F66: 2.3. 1 5. 1 2
A67: 66 | B67: 717300110085 | C67: CARTULINA SIMPLE 180 g DE 69 cm X 89 cm COLOR ROSADO | D67: CIENTO | E67: 3 | F67: 2.3. 1 5. 1 2
A68: 67 | B68: 717300110084 | C68: CARTULINA SIMPLE 180 g DE 69 cm X 89 cm COLOR VERDE | D68: CIENTO | E68: 3 | F68: 2.3. 1 5. 1 2
A69: 68 | B69: 717300110047 | C69: CARTULINA SIMPLE 180 g DE 70 cm X 100 cm COLOR BLANCO | D69: UNIDAD | E69: 0.235924 | F69: 2.3. 1 5. 1 2
A70: 69 | B70: 717300110046 | C70: CARTULINA SIMPLE 180 g DE 70 cm X 100 cm COLOR ROSADO | D70: CIENTO | E70: 3 | F70: 2.3. 1 5. 1 2
A71: 70 | B71: 717300110003 | C71: CARTULINA SIMPLE 180 g TAMAÑO A4 | D71: UNIDAD | E71: 0.235924 | F71: 2.3. 1 5. 1 2
A72: 71 | B72: 717300110005 | C72: CARTULINA SIMPLE 220 g DE 66 cm X 102 cm | D72: UNIDAD | E72: 0.235924 | F72: PAPEL LUSTRE DE 60 cm X 50 cm COLOR AZUL
A73: 72 | B73: 717300110004 | C73: CARTULINA SIMPLE 220 g DE 70 cm X 100 cm | D73: UNIDAD | E73: 0.235924 | F73: PAPEL LUSTRE DE 50 cm X 65 cm COLOR ROJO
A74: 73 | B74: 717300110012 | C74: CARTULINA SIMPLE 90 g DE 70 cm X 100 cm | D74: UNIDAD | E74: 0.235924 | F74: PAPEL LUSTRE DE 50 cm X 65 cm COLOR AZUL
A75: 74 | B75: 717300110130 | C75: CARTULINA TIPO TAGG 150 g DE 23.2 cm X 32.5 cm | D75: UNIDAD | E75: 0.235924 | F75: PAPEL LUSTRE DE 50 cm X 65 cm COLOR AMARILLO
A76: 75 | B76: 767400040059 | C76: CD GRABABLE DE 700 MB | D76: UNIDAD | E76: 0.235924 | F76: PAPEL LUSTRE DE 50 cm X 65 cm COLOR VERDE
A77: 76 | B77: 767400040047 | C77: CD GRABABLE DE 720 MB | D77: UNIDAD | F77: PAPEL LUSTRE DE 50 cm X 65 cm COLOR CELESTE
A78: 77 | B78: 133000070031 | C78: CERA AL AGUA AUTOBRILLANTE COLOR NEUTRAL | D78: GALON | E78: 25 | F78: PAPEL LUSTRE DE 60 cm X 50 cm COLOR CELESTE
A79: 78 | B79: 133000070049 | C79: CERA AL AGUA AUTOBRILLANTE COLOR NEUTRAL X 20 L | D79: UNIDAD | E79: 25 | F79: PAPEL LUSTRE DE 60 cm X 50 cm COLOR NARANJA
A80: 79 | B80: 133000070046 | C80: CERA AL AGUA PARA PISO AUTOBRILLANTE COLOR AMARILLO | D80: GALON | E80: 25 | F80: PAPEL LUSTRE DE 60 cm X 50 cm COLOR LILA
A81: 80 | B81: 133000070047 | C81: CERA AL AGUA PARA PISO AUTOBRILLANTE COLOR NEGRO | D81: GALON | E81: 25 | F81: PAPEL LUSTRE DE 60 cm X 50 cm COLOR MORADO
A82: 81 | B82: 133000070045 | C82: CERA AL AGUA PARA PISO AUTOBRILLANTE COLOR ROJO | D82: GALON | E82: 25 | F82: PAPEL LUSTRE DE 60 cm X 50 cm COLOR GUINDA
A83: 82 | B83: 133000070037 | C83: CERA AL AGUA PARA PISO COLOR AMARILLO | D83: GALON | E83: 25
A84: 83 | B84: 133000070035 | C84: CERA AL AGUA PARA PISO COLOR BLANCO | D84: GALON | E84: 25
A85: 84 | B85: 133000070036 | C85: CERA AL AGUA PARA PISO COLOR NEGRO | D85: GALON | E85: 25
A86: 85 | B86: 133000070034 | C86: CERA AL AGUA PARA PISO COLOR ROJO | D86: GALON | E86: 25
A87: 86 | B87: 133000070038 | C87: CERA AL AGUA PARA PISO X 5 L | D87: UNIDAD | E87: 25
A88: 87 | B88: 133000070010 | C88: CERA AL AGUA PARA PISO X 55 gal | D88: UNIDAD | E88: 25
A89: 88 | B89: 133000070032 | C89: CERA AL AGUA PARA PISO. | D89: GALON | E89: 25
A90: 89 | B90: 133000070025 | C90: CERA AL AGUA PERFUMADA X 1 L | D90: UNIDAD | E90: 25
A91: 90 | B91: 133000070048 | C91: CERA AL AGUA PERFUMADA. | D91: GALON | E91: 25
A92: 91 | B92: 133000070053 | C92: CERA LÍQUIDA CON SILICONA PARA PISO COLOR ROJO X 1 gal | D92: UNIDAD | E92: 25
A93: 92 | B93: 133000070056 | C93: CERA LÍQUIDA CON SILICONA PARA PISO X 1 gal | D93: UNIDAD | E93: 25
A94: 93 | B94: 133000070054 | C94: CERA LÍQUIDA PARA PISO AUTOBRILLANTE COLOR BLANCO | D94: GALON | E94: 25
A95: 94 | B95: 133000070043 | C95: CERA LIQUIDA PARA PISO COLOR ROJO | D95: GALON | E95: 25
A96: 95 | B96: 133000070042 | C96: CERA LIQUIDA PARA PISO X 1 gal | D96: UNIDAD | E96: 25
A97: 96 | B97: 710300010010 | C97: CINTA ADHESIVA TRANSPARENTE 2 in X 72 yd | D97: UNIDAD | E97: 3.2
A98: 97 | B98: 710300160006 | C98: CINTA DE PAPEL PARA ENMASCARAR - MASKING TAPE 2 in X 40 yd | D98: UNIDAD | E98: 1.77
A99: 98 | B99: 718500050045 | C99: CLIP DE METAL 33 mm | D99: UNIDAD | E99: 2.3954
A100: 99 | B100: 718500050032 | C100: CLIP DE METAL 33 mm X 100 | D100: UNIDAD | E100: 2.3954
A101: 100 | B101: 718500050001 | C101: CLIP DE METAL CHICO Nº 1 X 100 | D101: UNIDAD | E101: 2.3954
A102: 101 | B102: 718500050030 | C102: CLIP MARIPOSA DE METAL Nº 2 X 12 | D102: UNIDAD | E102: 2.3954
A103: 102 | B103: 718500050004 | C103: CLIP MARIPOSA DE METAL Nº 3 X 12 | D103: UNIDAD | E103: 2.3954
A104: 103 | B104: 718500050017 | C104: CLIP MARIPOSA DE METAL Nº 3 X 50 | D104: UNIDAD | E104: 2.3954
A105: 104 | B105: 239400090220 | C105: CONO DE PLASTICO PARA ENTRENAMIENTO 30 cm | D105: UNIDAD | E105: 3.8
A106: 105 | B106: 711100030005 | C106: CORRECTOR LIQUIDO TIPO LAPICERO | D106: UNIDAD | E106: 2.5
A107: 106 | B107: 890400010045 | C107: CORROSPUN 1.00 m X 1.00 m | D107: UNIDAD | E107: 8.9
A108: 107 | B108: 890400010045 | C108: CORROSPUN 1.00 m X 1.00 m - COLORES VARIOS | D108: UNIDAD | E108: 8.9
A109: 108 | B109: 890400010151 | C109: CORROSPUN 1.00 m X 1.00 m COLOR AMARILLO | D109: UNIDAD | E109: 8.9
A110: 109 | B110: 890400010152 | C110: CORROSPUN 1.00 m X 1.00 m COLOR CELESTE | D110: UNIDAD | E110: 8.9
A111: 110 | B111: 890400010150 | C111: CORROSPUN 1.00 m X 1.00 m COLOR FUCSIA | D111: UNIDAD | E111: 8.9
A112: 111 | B112: 890400010153 | C112: CORROSPUN 1.00 m X 1.00 m COLOR VERDE CLARO | D112: UNIDAD | E112: 8.9
A113: 112 | B113: 890400010187 | C113: CORROSPUN 1.40 m X 1.80 m COLOR AMARILLO | D113: UNIDAD | E113: 8.9
A114: 113 | B114: 890400010192 | C114: CORROSPUN 1.40 m X 1.80 m COLOR FUCSIA | D114: UNIDAD | E114: 8.9
A115: 114 | B115: 890400010191 | C115: CORROSPUN 1.40 m X 1.80 m COLOR MARRON | D115: UNIDAD | E115: 8.9
A116: 115 | B116: 890400010189 | C116: CORROSPUN 1.40 m X 1.80 m COLOR NEGRO | D116: UNIDAD | E116: 8.9
A117: 116 | B117: 890400010190 | C117: CORROSPUN 1.40 m X 1.80 m COLOR ROJO | D117: UNIDAD | E117: 8.9
A118: 117 | B118: 890400010186 | C118: CORROSPUN 1.40 m X 1.80 m COLOR VERDE | D118: UNIDAD | E118: 8.9
A119: 118 | B119: 890400010188 | C119: CORROSPUN 1.40 m X 1.80 m COLOR VERDE CLARO | D119: UNIDAD | E119: 8.9
A120: 119 | B120: 890400010163 | C120: CORROSPUN DE 1.00 m X 1.50 m | D120: UNIDAD | E120: 8.9
A121: 120 | B121: 890400010082 | C121: CORROSPUN DE 1.40 m X 1.00 m | D121: UNIDAD | E121: 8.9
A122: 121 | B122: 890400010067 | C122: CORROSPUN DE 70 cm X 50 cm | D122: UNIDAD | E122: 8.9
A123: 122 | B123: 890400010110 | C123: CORROSPUN DE 70 cm X 50 cm COLOR ROSADO | D123: UNIDAD | E123: 8.9
A124: 123 | B124: 890400010178 | C124: CORROSPUN X 1.50 m DE ANCHO | D124: METRO | E124: 8.9
A125: 124 | B125: 890400010177 | C125: CORROSPUN X 1.80 m DE ANCHO | D125: UNIDAD | E125: 8.9
A126: 125 | B126: 890400010165 | C126: CORROSPUN X 2.00 m DE ANCHO | D126: METRO | E126: 8.9
A127: 126 | B127: 890400010074 | C127: CORROSPUN X 70 cm DE ANCHO COLOR BLANCO | D127: METRO | E127: 8.9
A128: 127 | B128: 890400010174 | C128: CORROSPUN X 70 cm DE ANCHO COLOR DORADO | D128: METRO | E128: 8.9
A129: 128 | B129: 890400010072 | C129: CORROSPUN X 70 cm DE ANCHO COLOR MARRON | D129: METRO | E129: 8.9
A130: 129 | B130: 890400010070 | C130: CORROSPUN X 70 cm DE ANCHO COLOR NEGRO | D130: METRO | E130: 8.9
A131: 130 | B131: 890400010175 | C131: CORROSPUN X 70 cm DE ANCHO COLOR PLATEADO | D131: METRO | E131: 8.9
A132: 131 | B132: 890400010071 | C132: CORROSPUN X 70 cm DE ANCHO COLOR ROJO | D132: METRO | E132: 8.9
A133: 132 | B133: 890400010073 | C133: CORROSPUN X 70 cm DE ANCHO COLOR VERDE | D133: METRO | E133: 8.9
A134: 133 | B134: 890400010075 | C134: CORROSPUN X 70 CM DE ANCHO COLOR VERDE CLARO | D134: METRO | E134: 8.9
A135: 134 | B135: 717200030014 | C135: CUADERNO CUADRICULADO TAMAÑO A4 X 100 HOJAS | D135: UNIDAD | E135: 4.43
A136: 135 | B136: 717200030287 | C136: CUADERNO DOBLE ESPIRAL CUADRICULADO TAMAÑO A4 X 180 HOJAS | D136: UNIDAD | E136: 7.25
A137: 136 | B137: 715000320033 | C137: CUCHILLA PARA CORTAR PAPEL 10 mm | D137: UNIDAD | E137: 1
A138: 137 | B138: 133000160091 | C138: DETERGENTE GRANULADO X 3 kg | D138: UNIDAD | E138: 35
A139: 138 | B139: 133000160140 | C139: DETERGENTE GRANULADO X 350 g APROX. | D139: UNIDAD | E139: 35
A140: 139 | B140: 133000160124 | C140: DETERGENTE GRANULADO X 4 kg | D140: UNIDAD | E140: 35
A141: 140 | B141: 133000160100 | C141: DETERGENTE GRANULADO X 4.5 kg | D141: UNIDAD | E141: 35
A142: 141 | B142: 133000160086 | C142: DETERGENTE GRANULADO X 5 kg | D142: UNIDAD | E142: 35
A143: 142 | B143: 767400040151 | C143: DISCO DVD - RW 4 GB | D143: UNIDAD | E143: 0.68
A144: 143 | B144: 767400040083 | C144: DISCO DVD - RW DE 4.7 GB | D144: UNIDAD | E144: 0.68
A145: 144 | B145: 767400040014 | C145: DISCO DVD GRABABLE DE 4.7 GB | D145: UNIDAD | E145: 0.68
A146: 145 | B146: 767400040094 | C146: DISCO DVD GRABABLE DE 4.7 GB SERIGRAFIADO | D146: UNIDAD | E146: 0.68
A147: 146 | B147: 715000110041 | C147: ENGRAPADOR CHICO DE OFICINA CON YUNQUE GIRATORIO | D147: UNIDAD | E147: 19
A148: 147 | B148: 135000050045 | C148: ESCOBA BAJA POLICIA DE 2 PITAS 2 ZUNCHOS | D148: UNIDAD | E148: 7.5
A149: 148 | B149: 135000080025 | C149: ESCOBILLON DE CERDA PARA PISO X 30 cm | D149: UNIDAD | E149: 6.8
A150: 149 | B150: 710600040024 | C150: FOLDER MANILA TAMAÑO A4 | D150: EMPAQUE X 25 | E150: 7.5
A151: 150 | B151: 710600060005 | C151: FORRO DE PLASTICO TAMAÑO OFICIO | D151: UNIDAD | E151: 8.9
A152: 151 | B152: 710300060057 | C152: GOMA EN BARRA X 40 g APROX. | D152: UNIDAD | E152: 8
A153: 152 | B153: 718500080026 | C153: GRAPA 26/6 X 5000 | D153: UNIDAD | E153: 1.85
A154: 153 | B154: 135000360019 | C154: GUANTE DE JEBE DE USO DOMESTICO PUÑO LARGO | D154: PAR
A155: 154 | B155: 135000360009 | C155: GUANTE DE JEBE DE USO DOMESTICO TALLA 10 | D155: PAR | E155: 8
A156: 155 | B156: 135000360022 | C156: GUANTE DE JEBE DE USO DOMESTICO TALLA 12 | D156: PAR | E156: 8
A157: 156 | B157: 135000360003 | C157: GUANTE DE JEBE DE USO DOMESTICO TALLA 6 | D157: PAR | E157: 8
A158: 157 | B158: 135000360007 | C158: GUANTE DE JEBE DE USO DOMESTICO TALLA 6 1/2 | D158: PAR | E158: 8
A159: 158 | B159: 135000360004 | C159: GUANTE DE JEBE DE USO DOMESTICO TALLA 7 | D159: PAR | E159: 8
A160: 159 | B160: 135000360008 | C160: GUANTE DE JEBE DE USO DOMESTICO TALLA 7 1/2 | D160: PAR | E160: 8
A161: 160 | B161: 135000360005 | C161: GUANTE DE JEBE DE USO DOMESTICO TALLA 8 | D161: PAR | E161: 8
A162: 161 | B162: 135000360006 | C162: GUANTE DE JEBE DE USO DOMESTICO TALLA 8 1/2 | D162: PAR | E162: 8
A163: 162 | B163: 135000360002 | C163: GUANTE DE JEBE DE USO DOMESTICO TALLA 9 | D163: PAR | E163: 8
A164: 163 | B164: 135000360001 | C164: GUANTE DE JEBE DE USO DOMESTICO TALLA 9 1/2 | D164: PAR | E164: 8
A165: 164 | B165: 135000360015 | C165: GUANTE DE JEBE DE USO DOMESTICO TALLA L | D165: PAR | E165: 8
A166: 165 | B166: 135000360029 | C166: GUANTE DE JEBE DE USO DOMESTICO TALLA L X 10 | D166: PAR | E166: 8
A167: 166 | B167: 135000360011 | C167: GUANTE DE JEBE DE USO SEMI INDUSTRIAL TALLA 6 | D167: PAR | E167: 8
A168: 167 | B168: 135000360013 | C168: GUANTE DE JEBE DE USO SEMI INDUSTRIAL TALLA 7 1/2 | D168: PAR | E168: 8
A169: 168 | B169: 139200100117 | C169: JABON CARBOLICO EN BARRA X 200 g | D169: UNIDAD | E169: 1
A170: 169 | B170: 235200040014 | C170: JUEGO DE AJEDREZ | D170: UNIDAD | E170: 15
A171: 170 | B171: 133000220009 | C171: KRESO X 1 L | D171: UNIDAD | E171: 3.5
A172: 171 | B172: 716000040070 | C172: LAPIZ GRAFITO Nº 2 | D172: UNIDAD | E172: 0.59
A173: 172 | B173: 717200140152 | C173: LIBRO DE ACTAS EMPASTADO RAYADO TAMAÑO A4 X 100 HOJAS | D173: UNIDAD | E173: 9.9
A174: 173 | B174: 133000270008 | C174: LIMPIA VIDRIO EN SPRAY X 1L | D174: UNIDAD | E174: 6
A175: 174 | B175: 767500590004 | C175: MEMORIA PORTATIL USB DE 8 GB | D175: UNIDAD | E175: 20
A176: 175 | B176: 135000180056 | C176: MOPA DE ALGODON LIMPIA VIDRIOS DE 100 cm | D176: UNIDAD | E176: 8
A177: 176 | B177: 135000180058 | C177: MOPA DE ALGODON LIMPIA VIDRIOS DE 25 cm | D177: UNIDAD | E177: 8
A178: 177 | B178: 135000180057 | C178: MOPA DE ALGODON LIMPIA VIDRIOS DE 60 cm | D178: UNIDAD | E178: 8
A179: 178 | B179: 715000440001 | C179: MOTA PARA PIZARRA ACRILICA | D179: UNIDAD | E179: 3
A180: 179 | B180: 239400050007 | C180: NET PARA VOLEY | D180: UNIDAD | E180: 54
A181: 180 | B181: 717200050227 | C181: PAPEL BOND 75 g TAMAÑO A4 | D181: EMPAQUE X 500 | E181: 10.33
A182: 181 | B182: 717200050413 | C182: PAPEL BOND 75 g TAMAÑO A4 DE COLORES | D182: EMPAQUE X 500 | E182: 30
A183: 182 | B183: 717200290118 | C183: PAPEL COMETA | D183: UNIDAD | E183: 0.5
A184: 183 | B184: 717200180040 | C184: PAPEL CREPE 50 cm X 1.60 m | D184: UNIDAD | E184: 0.5
A185: 184 | B185: 717200180039 | C185: PAPEL CREPE 50 cm X 1.60 m COLORES VARIADOS | D185: DECENA | E185: 3.5
A186: 185 | B186: 717200180041 | C186: PAPEL CREPE 50 cm X 1.80 cm X 10 PLIEGOS | D186: UNIDAD | E186: 0.5
A187: 186 | B187: 717200180058 | C187: PAPEL CREPE 50 cm X 1.80 m COLOR AMARILLO | D187: DECENA | E187: 3.5
A188: 187 | B188: 717200180054 | C188: PAPEL CREPE 50 cm X 1.80 m COLOR BLANCO | D188: DECENA | E188: 3.5
A189: 188 | B189: 717200180061 | C189: PAPEL CREPE 50 cm X 1.80 m COLOR FUCSIA | D189: DECENA | E189: 3.5
A190: 189 | B190: 717200180062 | C190: PAPEL CREPE 50 cm X 1.80 m COLOR GUINDA | D190: DECENA | E190: 3.5
A191: 190 | B191: 717200180068 | C191: PAPEL CREPE 50 cm X 1.80 m COLOR MORADO | D191: DECENA | E191: 3.5
A192: 191 | B192: 717200180057 | C192: PAPEL CREPE 50 cm X 1.80 m COLOR ROJO | D192: DECENA | E192: 3.5
A193: 192 | B193: 717200180056 | C193: PAPEL CREPE 50 cm X 1.80 m COLOR VERDE | D193: DECENA | E193: 3.5
A194: 193 | B194: 717200180053 | C194: PAPEL CREPE 50 cm X 1.80 m COLOR CELESTE | D194: DECENA | E194: 3.5
A195: 194 | B195: 717200180064 | C195: PAPEL CREPE 50 cm X 1.80 m COLOR ANARANJADO | D195: DECENA | E195: 3.5
A196: 195 | B196: 717200180067 | C196: PAPEL CREPE 50 cm X 1.80 m COLOR DORADO | D196: DECENA | E196: 3.5
A197: 196 | B197: 717200180065 | C197: PAPEL CREPE 50 cm X 1.80 m COLOR LILA | D197: DECENA | E197: 3.5
A198: 197 | B198: 717200180060 | C198: PAPEL CREPE 50 cm X 1.80 m COLOR MARRON | D198: DECENA | E198: 3.5
A199: 198 | B199: 717200180038 | C199: PAPEL CREPE 50 cm X 1.80 m COLOR MELÓN | D199: UNIDAD | E199: 0.5
A200: 199 | B200: 717200180037 | C200: PAPEL CREPE 50 cm X 1.80 m COLOR MORADO | D200: UNIDAD | E200: 0.5
... 149 more rows

Sheet LISTADO IIEE (hidden)
A1: N° | B1: Distrito | C1: Centro Poblado | D1: Cód. Mod. | E1: Nombre de IE | F1: Nivel | G1: Modalidad | H1: Tipo IE | I1: Total de estudiantes matriculados (*) | K1: area | L1: servicio de energia
A2: 1 | B2: Mañazo | D2: 1360122 | E2: CEBA - MAÑAZO | F2: Básica Alternativa - Avanzado | H2: Pública - Sector Educación | I2: 53 | J2: =+B2 -> Mañazo | K2: Urbana | L2: =+IF(K2="Rural",I2*2*12,IF(K2="Rural 1",I2*3.5*12,IF(K2="Rural 2",I2*3*12,IF(K2="Rural 3",I2*2.5*12,IF(K2="Urbana",I2*1.6*12,IF(K2="Urbana 1",I2*1.3*12,0)))))) -> 1017.6 | M2: =+A2 -> 1
A3: 2 | B3: Puno | D3: 1360155 | E3: CEBA - 32 | F3: Básica Alternativa - Avanzado | H3: Pública - Sector Educación | I3: 128 | J3: Puno | K3: Urbana | L3: 2457.6 | M3: 2
A4: 3 | B4: Puno | D4: 1360130 | E4: CEBA - 45 EMILIO ROMERO PADILLA | F4: Básica Alternativa - Avanzado | H4: Pública - Sector Educación | I4: 78 | J4: Puno | K4: Urbana | L4: 1497.6 | M4: 3
A5: 4 | B5: Puno | D5: 1024355 | E5: CEBA - 70025 INDEPENDENCIA NACIONAL | F5: Básica Alternativa - Avanzado | H5: Pública - Sector Educación | I5: 58 | J5: Puno | K5: Urbana | L5: 1113.6 | M5: 4
A6: 5 | B6: Puno | D6: 0239632 | E6: CEBA - 71013 GLORIOSO SAN CARLOS | F6: Básica Alternativa - Avanzado | H6: Pública - Sector Educación | I6: 170 | J6: Puno | K6: Urbana | L6: 3264 | M6: =+A6 -> 5
A7: 6 | B7: Puno | D7: 1564590 | E7: CEBA - APLICACION PEDAGOGICO PUNO | F7: Básica Alternativa - Avanzado | H7: Pública - Sector Educación | I7: 0 | J7: Puno | K7: Urbana | L7: 0 | M7: 6
A8: 7 | B8: Puno | D8: 1724855 | E8: CEBA - GUE SAN CARLOS | F8: Básica Alternativa - Avanzado | H8: Pública - Sector Educación | I8: 208 | J8: Puno | K8: Urbana | L8: 3993.6 | M8: 7
A9: 8 | B9: Puno | D9: 1360148 | E9: CEBA - JOSE ANTONIO ENCINAS | F9: Básica Alternativa - Avanzado | H9: Pública - Sector Educación | I9: 155 | J9: Puno | K9: Urbana | L9: 2976 | M9: 8
A10: 9 | B10: Puno | D10: 1024314 | E10: CEBA - SANTA ROSA | F10: Básica Alternativa - Avanzado | H10: Pública - Sector Educación | I10: 79 | J10: Puno | K10: Urbana | L10: 1516.8 | M10: 9
A11: 10 | B11: Puno | D11: 1331883 | E11: CEBA - VILLA DEL LAGO | F11: Básica Alternativa - Avanzado | H11: Pública - Sector Educación | I11: 129 | J11: Puno | K11: Urbana | L11: 2476.8 | M11: 10
A12: 11 | B12: Puno | D12: 1702331 | E12: CEBA - VIRGEN DE LA ASUNCION | F12: Básica Alternativa - Avanzado | H12: Pública - Sector Educación | I12: 43 | J12: Puno | K12: Urbana | L12: 825.6 | M12: 11
A13: 12 | B13: Puno | D13: 1025741 | E13: CEBA - 70025 INDEPENDENCIA NACIONAL | F13: Básica Alternativa - Inicial e Intermedio | H13: Pública - Sector Educación | I13: 12 | J13: Puno | K13: Urbana | L13: 230.4 | M13: 12
A14: 13 | B14: Puno | D14: 0240523 | E14: CEBA - 71013 GLORIOSO SAN CARLOS | F14: Básica Alternativa - Inicial e Intermedio | H14: Pública - Sector Educación | I14: 42 | J14: Puno | K14: Urbana | L14: 806.4 | M14: 13
A15: 14 | B15: Puno | D15: 0240408 | E15: CEBA - GUE SAN CARLOS | F15: Básica Alternativa - Inicial e Intermedio | H15: Pública - Sector Educación | I15: 0 | J15: Puno | K15: Urbana | L15: 0 | M15: 14
A16: 15 | B16: Puno | D16: 1024397 | E16: CEBA - JOSE ANTONIO ENCINAS | F16: Básica Alternativa - Inicial e Intermedio | H16: Pública - Sector Educación | J16: Puno | K16: Urbana | L16: 0 | M16: 15
A17: 16 | B17: Puno | D17: 1764067 | E17: CEBA - VIRGEN DE LA ASUNCION | F17: Básica Alternativa - Inicial e Intermedio | H17: Pública - Sector Educación | J17: Puno | K17: Urbana | L17: 0 | M17: 16
A18: 1 | B18: ACORA | C18: SACUYO | D18: 0229641 | E18: 204 | F18: Inicial | G18: Educación Básica Regular | H18: A1 - Pública - Sector Educación | I18: 10 | J18: ACORA | K18: Rural 2 | L18: 360 | M18: 1
A19: 2 | B19: ACORA | C19: SOCCA | D19: 0539254 | E19: 258 | F19: Inicial | G19: Educación Básica Regular | H19: A1 - Pública - Sector Educación | I19: 23 | J19: ACORA | K19: Rural 2 | L19: 828 | M19: 2
A20: 3 | B20: ACORA | C20: JAYU JAYU | D20: 0799437 | E20: 312 | F20: Inicial | G20: Educación Básica Regular | H20: A1 - Pública - Sector Educación | I20: 15 | J20: ACORA | K20: Rural 3 | L20: 450 | M20: 3
A21: 4 | B21: ACORA | C21: JILATAMARCA | D21: 1414721 | E21: 396 | F21: Inicial | G21: Educación Básica Regular | H21: A1 - Pública - Sector Educación | I21: 3 | J21: ACORA | K21: Rural 1 | L21: 126 | M21: 4
A22: 5 | B22: ACORA | C22: CULTA | D22: 1470939 | E22: 1193 | F22: Inicial | G22: Educación Básica Regular | H22: A1 - Pública - Sector Educación | I22: 20 | J22: ACORA | K22: Rural 3 | L22: 600 | M22: 5
A23: 6 | B23: ACORA | C23: THUNUHUAYA | D23: 1556463 | E23: 1206 | F23: Inicial | G23: Educación Básica Regular | H23: A1 - Pública - Sector Educación | I23: 11 | J23: ACORA | K23: Rural 2 | L23: 396 | M23: 6
A24: 7 | B24: ACORA | C24: QUELCA | D24: 1569714 | E24: 1212 | F24: Inicial | G24: Educación Básica Regular | H24: A1 - Pública - Sector Educación | I24: 12 | J24: ACORA | K24: Rural 2 | L24: 432 | M24: 7
A25: 8 | B25: ACORA | C25: PIRCO | D25: 1621184 | E25: 1238 | F25: Inicial | G25: Educación Básica Regular | H25: A1 - Pública - Sector Educación | I25: 4 | J25: ACORA | K25: Rural 1 | L25: 168 | M25: 8
A26: 9 | B26: ACORA | C26: AGUAS CALIENTES | D26: 1621408 | E26: 1260 | F26: Inicial | G26: Educación Básica Regular | H26: A1 - Pública - Sector Educación | I26: 7 | J26: ACORA | K26: Rural 1 | L26: 294 | M26: 9
A27: 10 | B27: ACORA | C27: CIUDAD NUEVA | D27: 1662394 | E27: 1308 | F27: Inicial | G27: Educación Básica Regular | H27: A1 - Pública - Sector Educación | I27: 6 | J27: ACORA | K27: Rural 3 | L27: 180 | M27: 10
A28: 11 | B28: ACORA | C28: ISCACHURO | D28: 1710672 | E28: 70085 | F28: Inicial | G28: Educación Básica Regular | H28: A1 - Pública - Sector Educación | I28: 5 | J28: ACORA | K28: Rural 2 | L28: 180 | M28: 11
A29: 12 | B29: ACORA | C29: ISCATA | D29: 1710664 | E29: 70158 | F29: Inicial | G29: Educación Básica Regular | H29: A1 - Pública - Sector Educación | I29: 11 | J29: ACORA | K29: Rural 2 | L29: 396 | M29: 12
A30: 13 | B30: ACORA | C30: CHANCACHI | D30: 1470962 | E30: 1189 LA MERCED | F30: Inicial | G30: Educación Básica Regular | H30: A1 - Pública - Sector Educación | I30: 10 | J30: ACORA | K30: Rural 2 | L30: 360 | M30: 13
A31: 14 | B31: ACORA | C31: AYRUMAS CARUMAS | D31: 1470871 | E31: 1194 JEAN PIAGET | F31: Inicial | G31: Educación Básica Regular | H31: A1 - Pública - Sector Educación | I31: 12 | J31: ACORA | K31: Rural 1 | L31: 504 | M31: 14
A32: 15 | B32: ACORA | C32: CHALLOCOLLO | D32: 1470913 | E32: 1195 NUEVO PARAISO | F32: Inicial | G32: Educación Básica Regular | H32: A1 - Pública - Sector Educación | I32: 5 | J32: ACORA | K32: Rural 3 | L32: 150 | M32: 15
A33: 16 | B33: ACORA | C33: CUSINI | D33: 1470947 | E33: 1198 NIÑO JESUS DE PRAGA | F33: Inicial | G33: Educación Básica Regular | H33: A1 - Pública - Sector Educación | I33: 7 | J33: ACORA | K33: Rural 2 | L33: 252 | M33: 16
A34: 17 | B34: ACORA | C34: MOLLOCO | D34: 1556380 | E34: 1213 RAYITOS DE LUZ | F34: Inicial | G34: Educación Básica Regular | H34: A1 - Pública - Sector Educación | I34: 5 | J34: ACORA | K34: Rural 3 | L34: 150 | M34: 17
A35: 18 | B35: ACORA | C35: CUCHO ESQUEÑA | D35: 1556331 | E35: 1214 MI DIVINO NIÑO | F35: Inicial | G35: Educación Básica Regular | H35: A1 - Pública - Sector Educación | I35: 8 | J35: ACORA | K35: Rural 3 | L35: 240 | M35: 18
A36: 19 | B36: ACORA | C36: CARITAMAYA | D36: 1556307 | E36: 1216 SAN SANTIAGO DE CARITAMAYA | F36: Inicial | G36: Educación Básica Regular | H36: A1 - Pública - Sector Educación | I36: 11 | J36: ACORA | K36: Rural 3 | L36: 330 | M36: 19
A37: 20 | B37: ACORA | C37: JACHA HUINCHOCA | D37: 1556349 | E37: 1217 ARCO IRIS DE LA SABIDURIA | F37: Inicial | G37: Educación Básica Regular | H37: A1 - Pública - Sector Educación | I37: 17 | J37: ACORA | K37: Rural 3 | L37: 510 | M37: 20
A38: 21 | B38: ACORA | C38: CAPALLA | D38: 1569698 | E38: 1229 LOS PEQUEÑOS GENIOS | F38: Inicial | G38: Educación Básica Regular | H38: A1 - Pública - Sector Educación | I38: 6 | J38: ACORA | K38: Rural 3 | L38: 180 | M38: 21
A39: 22 | B39: ACORA | C39: SANTA ROSA DE YANAQUE | D39: 1569722 | E39: 1230 SANTA ROSA | F39: Inicial | G39: Educación Básica Regular | H39: A1 - Pública - Sector Educación | I39: 7 | J39: ACORA | K39: Rural 2 | L39: 252 | M39: 22
A40: 23 | B40: ACORA | C40: TOTORANI | D40: 1621176 | E40: 1237 VIRGEN DEL ROSARIO | F40: Inicial | G40: Educación Básica Regular | H40: A1 - Pública - Sector Educación | I40: 10 | J40: ACORA | K40: Rural 2 | L40: 360 | M40: 23
A41: 24 | B41: ACORA | C41: COLLINI | D41: 1621218 | E41: 1241 DIVINA MISERICORDIA | F41: Inicial | G41: Educación Básica Regular | H41: A1 - Pública - Sector Educación | I41: 12 | J41: ACORA | K41: Rural 3 | L41: 360 | M41: 24
A42: 25 | B42: ACORA | C42: THUNCO | D42: 1621291 | E42: 1249 SAN ANTONIO DE THUNCO | F42: Inicial | G42: Educación Básica Regular | H42: A1 - Pública - Sector Educación | I42: 10 | J42: ACORA | K42: Rural 3 | L42: 300 | M42: 25
A43: 26 | B43: ACORA | C43: AMPARANI | D43: 1621358 | E43: 1255 SANTA TERESITA DEL NIÑO JESUS | F43: Inicial | G43: Educación Básica Regular | H43: A1 - Pública - Sector Educación | I43: 21 | J43: ACORA | K43: Rural 2 | L43: 756 | M43: 26
A44: 27 | B44: ACORA | C44: CHAJANA | D44: 1621382 | E44: 1258 EMILIA BARCIA BONIFFATTI | F44: Inicial | G44: Educación Básica Regular | H44: A1 - Pública - Sector Educación | I44: 8 | J44: ACORA | K44: Rural 1 | L44: 336 | M44: 27
A45: 28 | B45: ACORA | C45: PARAPICHUZA | D45: 1621523 | E45: 1272 PASITOS MAGICOS | F45: Inicial | G45: Educación Básica Regular | H45: A1 - Pública - Sector Educación | I45: 4 | J45: ACORA | K45: Rural 1 | L45: 168 | M45: 28
A46: 29 | B46: ACORA | C46: TUNQUIPA | D46: 1621648 | E46: 1282 LOS AMIGUITOS DE CORAZON DE JESUS | F46: Inicial | G46: Educación Básica Regular | H46: A1 - Pública - Sector Educación | I46: 6 | J46: ACORA | K46: Rural 2 | L46: 216 | M46: 29
A47: 30 | B47: ACORA | C47: HUARCANTINQUIHUI | D47: 1621655 | E47: 1283 SEÑOR DE HUANCA | F47: Inicial | G47: Educación Básica Regular | H47: A1 - Pública - Sector Educación | I47: 8 | J47: ACORA | K47: Rural 2 | L47: 288 | M47: 30
A48: 31 | B48: ACORA | C48: IMATA | D48: 1621663 | E48: 1284 MARIA MONTESSORI | F48: Inicial | G48: Educación Básica Regular | H48: A1 - Pública - Sector Educación | I48: 10 | J48: ACORA | K48: Rural 1 | L48: 420 | M48: 31
A49: 32 | B49: ACORA | C49: JACHACACHI | D49: 1621671 | E49: 1285 NIÑO JESUS DE JACHACACHI | F49: Inicial | G49: Educación Básica Regular | H49: A1 - Pública - Sector Educación | I49: 8 | J49: ACORA | K49: Rural 2 | L49: 288 | M49: 32
A50: 33 | B50: ACORA | C50: CCACCALLACA | D50: 1623628 | E50: 1291 CORAZON DE JESUS | F50: Inicial | G50: Educación Básica Regular | H50: A1 - Pública - Sector Educación | I50: 7 | J50: ACORA | K50: Rural 3 | L50: 210 | M50: 33
A51: 34 | B51: ACORA | C51: COCOSANI | D51: 1654946 | E51: 1297 VIRGENCITA DE LA ASUNCION | F51: Inicial | G51: Educación Básica Regular | H51: A1 - Pública - Sector Educación | I51: 7 | J51: ACORA | K51: Rural 2 | L51: 252 | M51: 34
A52: 35 | B52: ACORA | C52: CCOPAMAYA | D52: 1654953 | E52: 1298 CAPULLITOS DE CANTUTA | F52: Inicial | G52: Educación Básica Regular | H52: A1 - Pública - Sector Educación | I52: 10 | J52: ACORA | K52: Rural 2 | L52: 360 | M52: 35
A53: 36 | B53: ACORA | C53: ISCAHUINCHOCA | D53: 1654961 | E53: 1299 LOS ANGELITOS | F53: Inicial | G53: Educación Básica Regular | H53: A1 - Pública - Sector Educación | I53: 13 | J53: ACORA | K53: Rural 2 | L53: 468 | M53: 36
A54: 37 | B54: ACORA | C54: QUENAFAJA | D54: 1655042 | E54: 1307 SEMILLITAS DEL MAÑANA | F54: Inicial | G54: Educación Básica Regular | H54: A1 - Pública - Sector Educación | I54: 8 | J54: ACORA | K54: Rural 3 | L54: 240 | M54: 37
A55: 38 | B55: ACORA | C55: ACORA | D55: 0229542 | E55: 194 CORAZON DE JESUS | F55: Inicial | G55: Educación Básica Regular | H55: A1 - Pública - Sector Educación | I55: 117 | J55: ACORA | K55: Urbana | L55: 2246.4 | M55: 38
A56: 39 | B56: ACORA | C56: CCACCA | D56: 1746254 | E56: CCACCA | F56: Inicial | G56: Educación Básica Regular | H56: A1 - Pública - Sector Educación | I56: 9 | J56: ACORA | K56: Rural 2 | L56: 324 | M56: 39
A57: 40 | B57: ACORA | C57: HUAÑASCURO | D57: 1679323 | E57: HUAÑUSCURO | F57: Inicial | G57: Educación Básica Regular | H57: A1 - Pública - Sector Educación | I57: 9 | J57: ACORA | K57: Rural 3 | L57: 270 | M57: 40
A58: 41 | B58: AMANTANI | C58: TAQUILE | D58: 1025352 | E58: 291 | F58: Inicial | G58: Educación Básica Regular | H58: A1 - Pública - Sector Educación | I58: 50 | J58: AMANTANI | K58: Rural 1 | L58: 2100 | M58: 41
A59: 42 | B59: AMANTANI | C59: AMANTANI | D59: 1470996 | E59: 1196 LOS ANGELES DE SANTA ROSA | F59: Inicial | G59: Educación Básica Regular | H59: A1 - Pública - Sector Educación | I59: 13 | J59: AMANTANI | K59: Rural 2 | L59: 468 | M59: 42
A60: 43 | B60: AMANTANI | C60: AMANTANI | D60: 1470954 | E60: 1197 SOR ANA DE LOS ANGELES | F60: Inicial | G60: Educación Básica Regular | H60: A1 - Pública - Sector Educación | I60: 10 | J60: AMANTANI | K60: Rural 2 | L60: 360 | M60: 43
A61: 44 | B61: AMANTANI | C61: OCCOSUYO | D61: 1621192 | E61: 1239 DIVINO NIÑO | F61: Inicial | G61: Educación Básica Regular | H61: A1 - Pública - Sector Educación | I61: 15 | J61: AMANTANI | K61: Rural 1 | L61: 630 | M61: 44
A62: 45 | B62: AMANTANI | C62: SAN CAYANO / SANCAYUNE | D62: 1621317 | E62: 1251 LUZ DEL SABER | F62: Inicial | G62: Educación Básica Regular | H62: A1 - Pública - Sector Educación | I62: 11 | J62: AMANTANI | K62: Rural 1 | L62: 462 | M62: 45
A63: 46 | B63: AMANTANI | C63: VILLA ORINOJON | D63: 1621481 | E63: 1268 KANTUTAS DE VILLA | F63: Inicial | G63: Educación Básica Regular | H63: A1 - Pública - Sector Educación | I63: 6 | J63: AMANTANI | K63: Rural 1 | L63: 252 | M63: 46
A64: 47 | B64: AMANTANI | C64: INCATIANA | D64: 1621531 | E64: 1273 SEMILLITAS DE ESPERANZA | F64: Inicial | G64: Educación Básica Regular | H64: A1 - Pública - Sector Educación | I64: 17 | J64: AMANTANI | K64: Rural 1 | L64: 714 | M64: 47
A65: 48 | B65: ATUNCOLLA | C65: ATUNCOLLA | D65: 1023209 | E65: 293 | F65: Inicial | G65: Educación Básica Regular | H65: A1 - Pública - Sector Educación | I65: 20 | J65: ATUNCOLLA | K65: Rural 2 | L65: 720 | M65: 48
A66: 49 | B66: ATUNCOLLA | C66: LLUNGO | D66: 1621283 | E66: 1248 | F66: Inicial | G66: Educación Básica Regular | H66: A1 - Pública - Sector Educación | I66: 37 | J66: =+B66 -> ATUNCOLLA | K66: Rural 2 | L66: =+IF(K66="Rural",I66*2*12,IF(K66="Rural 1",I66*3.5*12,IF(K66="Rural 2",I66*3*12,IF(K66="Rural 3",I66*2.5*12,IF(K66="Urbana",I66*1.6*12,IF(K66="Urbana 1",I66*1.3*12,0)))))) -> 1332 | M66: 49
A67: 50 | B67: ATUNCOLLA | C67: ULLAGACHI | D67: 1621606 | E67: 1279 | F67: Inicial | G67: Educación Básica Regular | H67: A1 - Pública - Sector Educación | I67: 13 | J67: ATUNCOLLA | K67: Rural 2 | L67: 468 | M67: 50
A68: 51 | B68: ATUNCOLLA | C68: MORO | D68: 1470988 | E68: 1191 SANTA BARBARA | F68: Inicial | G68: Educación Básica Regular | H68: A1 - Pública - Sector Educación | I68: 30 | J68: ATUNCOLLA | K68: Rural 3 | L68: 900 | M68: 51
A69: 52 | B69: ATUNCOLLA | C69: SAN JERONIMO DE HULLAGACHI | D69: 1471002 | E69: 1192 ULLAGACHI-ATUNCOLLA | F69: Inicial | G69: Educación Básica Regular | H69: A1 - Pública - Sector Educación | I69: 9 | J69: ATUNCOLLA | K69: Rural 2 | L69: 324 | M69: 52
A70: 53 | B70: ATUNCOLLA | C70: BUENAVISTA | D70: 1556273 | E70: 1218 NUEVO AMANECER | F70: Inicial | G70: Educación Básica Regular | H70: A1 - Pública - Sector Educación | I70: 10 | J70: ATUNCOLLA | K70: Rural 2 | L70: 360 | M70: =+A70 -> 53
A71: 54 | B71: ATUNCOLLA | C71: UMAYO | D71: 1621630 | E71: 1281 NIÑO JESUS SEMILLITAS DE ESPERANZA | F71: Inicial | G71: Educación Básica Regular | H71: A1 - Pública - Sector Educación | I71: 7 | J71: ATUNCOLLA | K71: Rural 2 | L71: 252 | M71: 54
A72: 55 | B72: ATUNCOLLA | C72: SAN JOSE PRINCIPIO | D72: 1654987 | E72: 1301 MUSUQ T'IKITA | F72: Inicial | G72: Educación Básica Regular | H72: A1 - Pública - Sector Educación | I72: 27 | J72: ATUNCOLLA | K72: Rural 3 | L72: 810 | M72: 55
A73: 56 | B73: ATUNCOLLA | C73: ANANSAYA | D73: 1654979 | E73: 13ANANZAYA | F73: Inicial | G73: Educación Básica Regular | H73: A1 - Pública - Sector Educación | I73: 8 | J73: ATUNCOLLA | K73: Rural 2 | L73: 288 | M73: 56
A74: 57 | B74: ATUNCOLLA | C74: PATACANCHA | D74: 1746262 | E74: PATACANCHA | F74: Inicial | G74: Educación Básica Regular | H74: A1 - Pública - Sector Educación | I74: 8 | J74: ATUNCOLLA | K74: Rural 2 | L74: 288 | M74: 57
A75: 58 | B75: CAPACHICA | C75: CAPACHICA | D75: 1023282 | E75: 201 | F75: Inicial | G75: Educación Básica Regular | H75: A1 - Pública - Sector Educación | I75: 18 | J75: CAPACHICA | K75: Rural 3 | L75: 540 | M75: 58
A76: 59 | B76: CAPACHICA | C76: YAPURA | D76: 1023324 | E76: 297 | F76: Inicial | G76: Educación Básica Regular | H76: A1 - Pública - Sector Educación | I76: 6 | J76: CAPACHICA | K76: Rural 2 | L76: 216 | M76: 59
A77: 60 | B77: CAPACHICA | C77: LLACHON | D77: 1025717 | E77: 298 | F77: Inicial | G77: Educación Básica Regular | H77: A1 - Pública - Sector Educación | I77: 17 | J77: CAPACHICA | K77: Rural 1 | L77: 714 | M77: 60
A78: 61 | B78: CAPACHICA | C78: LLACHON | D78: 1621374 | E78: 1257 | F78: Inicial | G78: Educación Básica Regular | H78: A1 - Pública - Sector Educación | I78: 10 | J78: CAPACHICA | K78: Rural 1 | L78: 420 | M78: 61
A79: 62 | B79: CAPACHICA | C79: CCOTOS | D79: 1621390 | E79: 1259 | F79: Inicial | G79: Educación Básica Regular | H79: A1 - Pública - Sector Educación | I79: 8 | J79: CAPACHICA | K79: Rural 2 | L79: 288 | M79: 62
A80: 63 | B80: CAPACHICA | C80: JAJANRA | D80: 1621689 | E80: 1286 | F80: Inicial | G80: Educación Básica Regular | H80: A1 - Pública - Sector Educación | I80: 9 | J80: CAPACHICA | K80: Rural 2 | L80: 324 | M80: 63
A81: 64 | B81: CAPACHICA | C81: SANTA MARIA | D81: 1623610 | E81: 1290 | F81: Inicial | G81: Educación Básica Regular | H81: A1 - Pública - Sector Educación | I81: 7 | J81: CAPACHICA | K81: Rural 1 | L81: 294 | M81: 64
A82: 65 | B82: CAPACHICA | C82: CAPANO | D82: 1470897 | E82: 1199 SAN JUAN DE CAPANO | F82: Inicial | G82: Educación Básica Regular | H82: A1 - Pública - Sector Educación | I82: 9 | J82: CAPACHICA | K82: Rural 2 | L82: 324 | M82: 65
A83: 66 | B83: CAPACHICA | C83: ISAÑURA | D83: 1621614 | E83: 1232 MISKY WASI | F83: Inicial | G83: Educación Básica Regular | H83: A1 - Pública - Sector Educación | I83: 16 | J83: CAPACHICA | K83: Rural 2 | L83: 576 | M83: 66
A84: 67 | B84: CAPACHICA | C84: COLLPA | D84: 1621366 | E84: 1256 NIÑO DE JESUS | F84: Inicial | G84: Educación Básica Regular | H84: A1 - Pública - Sector Educación | I84: 8 | J84: CAPACHICA | K84: Rural 1 | L84: 336 | M84: 67
A85: 68 | B85: CAPACHICA | C85: HILATA | D85: 1621424 | E85: 1262 NIÑO SAN SALVADOR | F85: Inicial | G85: Educación Básica Regular | H85: A1 - Pública - Sector Educación | I85: 16 | J85: CAPACHICA | K85: Rural 2 | L85: 576 | M85: 68
A86: 69 | B86: CAPACHICA | C86: TANTEON | D86: 1621457 | E86: 1265 ALFONSO UGARTE | F86: Inicial | G86: Educación Básica Regular | H86: A1 - Pública - Sector Educación | I86: 12 | J86: CAPACHICA | K86: Rural 2 | L86: 432 | M86: 69
A87: 70 | B87: CAPACHICA | C87: ESCALLANI | D87: 1621465 | E87: 1266 DON JOSE DE SAN MARTIN | F87: Inicial | G87: Educación Básica Regular | H87: A1 - Pública - Sector Educación | I87: 20 | J87: CAPACHICA | K87: Rural 2 | L87: 720 | M87: 70
A88: 71 | B88: CAPACHICA | C88: CCOTOS | D88: 1621507 | E88: 1270 JOSE DE SAN MARTIN | F88: Inicial | G88: Educación Básica Regular | H88: A1 - Pública - Sector Educación | I88: 6 | J88: CAPACHICA | K88: Rural 2 | L88: 216 | M88: 71
A89: 72 | B89: CAPACHICA | C89: CHAPA | D89: 1470921 | E89: 12SEMILLITAS DEL SABER | F89: Inicial | G89: Educación Básica Regular | H89: A1 - Pública - Sector Educación | I89: 26 | J89: CAPACHICA | K89: Rural 2 | L89: 936 | M89: 72
A90: 73 | B90: CHUCUITO | C90: CHUCUITO | D90: 0229666 | E90: 206 | F90: Inicial | G90: Educación Básica Regular | H90: A1 - Pública - Sector Educación | I90: 36 | J90: CHUCUITO | K90: Rural 3 | L90: 1080 | M90: 73
A91: 74 | B91: CHUCUITO | C91: CARINA | D91: 1023449 | E91: 300 | F91: Inicial | G91: Educación Básica Regular | H91: A1 - Pública - Sector Educación | I91: 11 | J91: CHUCUITO | K91: Rural 2 | L91: 396 | M91: 74
A92: 75 | B92: CHUCUITO | C92: CUSIPATA | D92: 1025725 | E92: 329 | F92: Inicial | G92: Educación Básica Regular | H92: A1 - Pública - Sector Educación | I92: 11 | J92: CHUCUITO | K92: Rural 3 | L92: 330 | M92: 75
A93: 76 | B93: CHUCUITO | C93: INCHUPALLA | D93: 1621168 | E93: 1236 | F93: Inicial | G93: Educación Básica Regular | H93: A1 - Pública - Sector Educación | I93: 9 | J93: CHUCUITO | K93: Rural 2 | L93: 324 | M93: 76
A94: 77 | B94: CHUCUITO | C94: LUQUINA CHICO | D94: 1556372 | E94: 1209 LAGO SAGRADO DE LUQUINA CHICO | F94: Inicial | G94: Educación Básica Regular | H94: A1 - Pública - Sector Educación | I94: 10 | J94: CHUCUITO | K94: Rural 2 | L94: 360 | M94: 77
A95: 78 | B95: CHUCUITO | C95: PARINA | D95: 1556406 | E95: 1210 TESORITOS DE PARINA | F95: Inicial | G95: Educación Básica Regular | H95: A1 - Pública - Sector Educación | I95: 14 | J95: CHUCUITO | K95: Rural 3 | L95: 420 | M95: 78
A96: 79 | B96: CHUCUITO | C96: LUQUINA GRANDE | D96: 1621242 | E96: 1244 SEMILLITAS DEL MAÑANA | F96: Inicial | G96: Educación Básica Regular | H96: A1 - Pública - Sector Educación | I96: 4 | J96: CHUCUITO | K96: Rural 2 | L96: 144 | M96: 79
A97: 80 | B97: CHUCUITO | C97: POTOJANI GRANDE | D97: 1621267 | E97: 1246 SHADDAY | F97: Inicial | G97: Educación Básica Regular | H97: A1 - Pública - Sector Educación | I97: 16 | J97: CHUCUITO | K97: Rural 2 | L97: 576 | M97: 80
A98: 81 | B98: CHUCUITO | C98: COCHIRAYA | D98: 1621309 | E98: 1250 DIVINO CORAZON | F98: Inicial | G98: Educación Básica Regular | H98: A1 - Pública - Sector Educación | I98: 8 | J98: CHUCUITO | K98: Rural 2 | L98: 288 | M98: 81
A99: 82 | B99: CHUCUITO | C99: TACASAYA | D99: 1621697 | E99: 1287 NIÑOS DEL LAGO SAGRADOS DE TACASAYA | F99: Inicial | G99: Educación Básica Regular | H99: A1 - Pública - Sector Educación | I99: 9 | J99: CHUCUITO | K99: Rural 2 | L99: 324 | M99: 82
A100: 83 | B100: CHUCUITO | C100: HUAIRAPATA | D100: 1525583 | E100: 401 NIÑO JESUS | F100: Inicial | G100: Educación Básica Regular | H100: A1 - Pública - Sector Educación | I100: 12 | J100: CHUCUITO | K100: Rural 2 | L100: 432 | M100: 83
A101: 84 | B101: COATA | C101: SORAZA | D101: 1025477 | E101: 289 | F101: Inicial | G101: Educación Básica Regular | H101: A1 - Pública - Sector Educación | I101: 35 | J101: COATA | K101: Rural 2 | L101: 1260 | M101: 84
A102: 85 | B102: COATA | C102: ANGEL CARATA | D102: 1556265 | E102: 1208 | F102: Inicial | G102: Educación Básica Regular | H102: A1 - Pública - Sector Educación | I102: 9 | J102: COATA | K102: Rural 2 | L102: 324 | M102: 85
A103: 86 | B103: COATA | C103: SUCASCO | D103: 1556455 | E103: 1221 | F103: Inicial | G103: Educación Básica Regular | H103: A1 - Pública - Sector Educación | I103: 55 | J103: COATA | K103: Rural 3 | L103: 1650 | M103: 86
A104: 87 | B104: COATA | C104: CARATA | D104: 1626795 | E104: 1292 | F104: Inicial | G104: Educación Básica Regular | H104: A1 - Pública - Sector Educación | I104: 10 | J104: COATA | K104: Rural 3 | L104: 300 | M104: 87
A105: 88 | B105: COATA | C105: JOCHI SAN FRANCISCO | D105: 1556356 | E105: 1219 PUKLLAY WASI | F105: Inicial | G105: Educación Básica Regular | H105: A1 - Pública - Sector Educación | I105: 32 | J105: COATA | K105: Rural 3 | L105: 960 | M105: 88
A106: 89 | B106: COATA | C106: LLUCO CENTRAL | D106: 1556364 | E106: 1220 SEMILLITAS DEL SEÑOR DE PENTECOSTES | F106: Inicial | G106: Educación Básica Regular | H106: A1 - Pública - Sector Educación | I106: 19 | J106: COATA | K106: Rural 2 | L106: 684 | M106: 89
A107: 90 | B107: COATA | C107: CANDILE | D107: 1556299 | E107: 1222 RAYITO DE SOL CANDILE | F107: Inicial | G107: Educación Básica Regular | H107: A1 - Pública - Sector Educación | I107: 6 | J107: COATA | K107: Rural 2 | L107: 216 | M107: 90
A108: 91 | B108: COATA | C108: PUTUCUNI | D108: 1556422 | E108: 1223 DIVINO NIÑO JESUS | F108: Inicial | G108: Educación Básica Regular | H108: A1 - Pública - Sector Educación | I108: 20 | J108: COATA | K108: Rural 2 | L108: 720 | M108: 91
A109: 92 | B109: COATA | C109: POJSIN | D109: 1556414 | E109: 1224 NUESTRA SEÑORA VIRGEN DEL ROSARIO | F109: Inicial | G109: Educación Básica Regular | H109: A1 - Pública - Sector Educación | I109: 10 | J109: COATA | K109: Rural 2 | L109: 360 | M109: 92
A110: 93 | B110: COATA | C110: SANTA CRUZ DE CAPARA | D110: 1556448 | E110: 1225 VILLA SANTA CRUZ DE SAMUCHACA | F110: Inicial | G110: Educación Básica Regular | H110: A1 - Pública - Sector Educación | I110: 6 | J110: COATA | K110: Rural 2 | L110: 216 | M110: 93
A111: 94 | B111: COATA | C111: LLACHAHUI | D111: 1621416 | E111: 1261 LOS ANGELITOS DE JESUS | F111: Inicial | G111: Educación Básica Regular | H111: A1 - Pública - Sector Educación | I111: 8 | J111: COATA | K111: Rural 2 | L111: 288 | M111: 94
A112: 95 | B112: COATA | C112: COLLANA LOJERA | D112: 1621499 | E112: 1269 CAPULLITOS DE AMOR | F112: Inicial | G112: Educación Básica Regular | H112: A1 - Pública - Sector Educación | I112: 13 | J112: COATA | K112: Rural 2 | L112: 468 | M112: 95
A113: 96 | B113: COATA | C113: UQUISILLA | D113: 1621580 | E113: 1277 JESUS EMANUEL | F113: Inicial | G113: Educación Básica Regular | H113: A1 - Pública - Sector Educación | I113: 11 | J113: COATA | K113: Rural 2 | L113: 396 | M113: 96
A114: 97 | B114: COATA | C114: SANTIAGO SORAZA | D114: 1626803 | E114: 1293 JESUS NAZARENO | F114: Inicial | G114: Educación Básica Regular | H114: A1 - Pública - Sector Educación | I114: 6 | J114: COATA | K114: Rural 2 | L114: 216 | M114: 97
A115: 98 | B115: COATA | C115: COATA | D115: 0229617 | E115: 261 SAN AGUSTIN | F115: Inicial | G115: Educación Básica Regular | H115: A1 - Pública - Sector Educación | I115: 27 | J115: COATA | K115: Rural 2 | L115: 972 | M115: 98
A116: 99 | B116: HUATA | C116: HUATTA | D116: 0487348 | E116: 215 | F116: Inicial | G116: Educación Básica Regular | H116: A1 - Pública - Sector Educación | I116: 55 | J116: HUATA | K116: Rural 3 | L116: 1650 | M116: 99
A117: 100 | B117: HUATA | C117: CHINCHERPAMPA | D117: 1654995 | E117: 1302 | F117: Inicial | G117: Educación Básica Regular | H117: A1 - Pública - Sector Educación | I117: 4 | J117: HUATA | K117: Rural 2 | L117: 144 | M117: 100
A118: 101 | B118: HUATA | C118: PAMPA YASIN | D118: 1621564 | E118: 1275 ALTA GRACIA DE YASIN | F118: Inicial | G118: Educación Básica Regular | H118: A1 - Pública - Sector Educación | I118: 28 | J118: HUATA | K118: Rural 2 | L118: 1008 | M118: 101
A119: 102 | B119: HUATA | C119: FAON | D119: 1655000 | E119: 1303 SAN MIGUEL DE FAON | F119: Inicial | G119: Educación Básica Regular | H119: A1 - Pública - Sector Educación | I119: 9 | J119: HUATA | K119: Rural 2 | L119: 324 | M119: 102
A120: 103 | B120: HUATA | C120: QUIVILLACA | D120: 1658921 | E120: 1309 INMACULADA CONCEPCION | F120: Inicial | G120: Educación Básica Regular | H120: A1 - Pública - Sector Educación | I120: 13 | J120: HUATA | K120: Rural 2 | L120: 468 | M120: 103
A121: 104 | B121: MAÑAZO | C121: MAÑAZO | D121: 0229690 | E121: 209 | F121: Inicial | G121: Educación Básica Regular | H121: A1 - Pública - Sector Educación | I121: 49 | J121: MAÑAZO | K121: Urbana | L121: 940.8 | M121: 104
A122: 105 | B122: MAÑAZO | C122: CHARAMAYA | D122: 1556315 | E122: 1226 | F122: Inicial | G122: Educación Básica Regular | H122: A1 - Pública - Sector Educación | I122: 8 | J122: MAÑAZO | K122: Rural 1 | L122: 336 | M122: 105
A123: 106 | B123: MAÑAZO | C123: HUILAMOCCO | D123: 1621234 | E123: 1243 | F123: Inicial | G123: Educación Básica Regular | H123: A1 - Pública - Sector Educación | I123: 15 | J123: MAÑAZO | K123: Rural 2 | L123: 540 | M123: 106
A124: 107 | B124: MAÑAZO | C124: CARI CARI | D124: 1470905 | E124: 1202 QORI SONCCO | F124: Inicial | G124: Educación Básica Regular | H124: A1 - Pública - Sector Educación | I124: 19 | J124: MAÑAZO | K124: Rural 2 | L124: 684 | M124: 107
A125: 108 | B125: MAÑAZO | C125: SANTA ROSA | D125: 1621572 | E125: 1276 SANTA ROSA | F125: Inicial | G125: Educación Básica Regular | H125: A1 - Pública - Sector Educación | I125: 20 | J125: MAÑAZO | K125: Urbana | L125: 384 | M125: 108
A126: 109 | B126: MAÑAZO | C126: ALTO ALIANZA | D126: 1655018 | E126: 1304 DIVINO NIÑO ALTO ALIANZA | F126: Inicial | G126: Educación Básica Regular | H126: A1 - Pública - Sector Educación | I126: 22 | J126: MAÑAZO | K126: Urbana | L126: 422.4 | M126: 109
A127: 110 | B127: MAÑAZO | C127: MAÑAZO | D127: 1679331 | E127: ALFONSO UGARTE | F127: Inicial | G127: Educación Básica Regular | H127: A1 - Pública - Sector Educación | I127: 16 | J127: MAÑAZO | K127: Urbana | L127: 307.2 | M127: 110
A128: 111 | B128: PAUCARCOLLA | C128: COLLANA | D128: 1023803 | E128: 295 | F128: Inicial | G128: Educación Básica Regular | H128: A1 - Pública - Sector Educación | I128: 18 | J128: PAUCARCOLLA | K128: Rural 3 | L128: 540 | M128: 111
A129: 112 | B129: PAUCARCOLLA | C129: PAUCARCOLLA | D129: 0513192 | E129: 323 | F129: Inicial | G129: Educación Básica Regular | H129: A1 - Pública - Sector Educación | I129: 24 | J129: PAUCARCOLLA | K129: Rural 3 | L129: 720 | M129: 112
A130: 113 | B130: PAUCARCOLLA | C130: CHALE | D130: 1621275 | E130: 1247 | F130: Inicial | G130: Educación Básica Regular | H130: A1 - Pública - Sector Educación | I130: 41 | J130: =+B130 -> PAUCARCOLLA | K130: Urbana | L130: =+IF(K130="Rural",I130*2*12,IF(K130="Rural 1",I130*3.5*12,IF(K130="Rural 2",I130*3*12,IF(K130="Rural 3",I130*2.5*12,IF(K130="Urbana",I130*1.6*12,IF(K130="Urbana 1",I130*1.3*12,0)))))) -> 787.2 | M130: 113
A131: 114 | B131: PAUCARCOLLA | C131: CANCHARANI | D131: 1621150 | E131: 1235 NIÑO SAN SALVADOR | F131: Inicial | G131: Educación Básica Regular | H131: A1 - Pública - Sector Educación | I131: 5 | J131: PAUCARCOLLA | K131: Rural 3 | L131: 150 | M131: 114
A132: 115 | B132: PAUCARCOLLA | C132: CUPE | D132: 1621325 | E132: 1252 VIRGEN DE GUADALUPE | F132: Inicial | G132: Educación Básica Regular | H132: A1 - Pública - Sector Educación | I132: 6 | J132: PAUCARCOLLA | K132: Rural 2 | L132: 216 | M132: 115
A133: 116 | B133: PAUCARCOLLA | C133: ANTONIANI | D133: 1621333 | E133: 1253 IMACULADA CONCEPCION | F133: Inicial | G133: Educación Básica Regular | H133: A1 - Pública - Sector Educación | I133: 4 | J133: PAUCARCOLLA | K133: Rural 2 | L133: 144 | M133: 116
A134: 117 | B134: PAUCARCOLLA | C134: CORTE ESTACION | D134: 1621473 | E134: 1267 RAYITOS DE SOL | F134: Inicial | G134: Educación Básica Regular | H134: A1 - Pública - Sector Educación | I134: 11 | J134: PAUCARCOLLA | K134: Rural 3 | L134: 330 | M134: =+A134 -> 117
A135: 118 | B135: PAUCARCOLLA | C135: YANICO / TITILE | D135: 1621556 | E135: 1274 SEMILLITAS DEL FUTURO | F135: Inicial | G135: Educación Básica Regular | H135: A1 - Pública - Sector Educación | I135: 6 | J135: PAUCARCOLLA | K135: Rural 2 | L135: 216 | M135: 118
A136: 119 | B136: PICHACANI | C136: LARAQUERI | D136: 0474627 | E136: 225 | F136: Inicial | G136: Educación Básica Regular | H136: A1 - Pública - Sector Educación | I136: 52 | J136: PICHACANI | K136: Rural 3 | L136: 1560 | M136: 119
A137: 120 | B137: PICHACANI | C137: PICHACANI | D137: 0539858 | E137: 268 | F137: Inicial | G137: Educación Básica Regular | H137: A1 - Pública - Sector Educación | I137: 10 | J137: PICHACANI | K137: Rural 2 | L137: 360 | M137: 120
A138: 121 | B138: PICHACANI | C138: SOQUESANI | D138: 1025568 | E138: 299 | F138: Inicial | G138: Educación Básica Regular | H138: A1 - Pública - Sector Educación | I138: 16 | J138: PICHACANI | K138: Rural 2 | L138: 576 | M138: 121
A139: 122 | B139: PICHACANI | C139: ANCACCA | D139: 1470863 | E139: 1204 LOS PEQUEÑOS CONQUISTADORES | F139: Inicial | G139: Educación Básica Regular | H139: A1 - Pública - Sector Educación | I139: 14 | J139: PICHACANI | K139: Rural 2 | L139: 504 | M139: 122
A140: 123 | B140: PICHACANI | C140: JATUCACHI | D140: 1584846 | E140: 1295 LOS NEVADITOS | F140: Inicial | G140: Educación Básica Regular | H140: A1 - Pública - Sector Educación | I140: 17 | J140: PICHACANI | K140: Rural 1 | L140: 714 | M140: 123
A141: 124 | B141: PICHACANI | C141: HUARIJUYO | D141: 1372853 | E141: 380 HUARIJUYO | F141: Inicial | G141: Educación Básica Regular | H141: A1 - Pública - Sector Educación | I141: 14 | J141: PICHACANI | K141: Rural 2 | L141: 504 | M141: 124
A142: 125 | B142: PICHACANI | C142: ARBOLEDA | D142: 1710680 | E142: ARBOLEDA | F142: Inicial | G142: Educación Básica Regular | H142: A1 - Pública - Sector Educación | I142: 11 | J142: PICHACANI | K142: Rural 2 | L142: 396 | M142: 125
A143: 126 | B143: PLATERIA | C143: CCOTA | D143: 0229625 | E143: 202 | F143: Inicial | G143: Educación Básica Regular | H143: A1 - Pública - Sector Educación | I143: 29 | J143: PLATERIA | K143: Rural 3 | L143: 870 | M143: 126
A144: 127 | B144: PLATERIA | C144: PLATERIA | D144: 0501338 | E144: 257 | F144: Inicial | G144: Educación Básica Regular | H144: A1 - Pública - Sector Educación | I144: 22 | J144: PLATERIA | K144: Rural 3 | L144: 660 | M144: 127
A145: 128 | B145: PLATERIA | C145: AÑO CALLEJON | D145: 1470889 | E145: 1201 | F145: Inicial | G145: Educación Básica Regular | H145: A1 - Pública - Sector Educación | I145: 10 | J145: PLATERIA | K145: Rural 2 | L145: 360 | M145: 128
A146: 129 | B146: PLATERIA | C146: SIHUECANI | D146: 1621226 | E146: 1242 | F146: Inicial | G146: Educación Básica Regular | H146: A1 - Pública - Sector Educación | I146: 11 | J146: PLATERIA | K146: Rural 2 | L146: 396 | M146: 129
A147: 130 | B147: PLATERIA | C147: CAMATA | D147: 1556281 | E147: 1207 SANTA ROSA | F147: Inicial | G147: Educación Básica Regular | H147: A1 - Pública - Sector Educación | I147: 14 | J147: PLATERIA | K147: Rural 2 | L147: 504 | M147: 130
A148: 131 | B148: PLATERIA | C148: PERCA | D148: 1621713 | E148: 1289 ESPONGITAS DEL SABER | F148: Inicial | G148: Educación Básica Regular | H148: A1 - Pública - Sector Educación | I148: 19 | J148: PLATERIA | K148: Rural 2 | L148: 684 | M148: 131
A149: 132 | B149: PLATERIA | C149: CAMACANI | D149: 0229740 | E149: 214 NIÑO JESUS DE PRAGA | F149: Inicial | G149: Educación Básica Regular | H149: A1 - Pública - Sector Educación | I149: 18 | J149: PLATERIA | K149: Rural 3 | L149: 540 | M149: 132
A150: 133 | B150: PLATERIA | C150: CHILATA | D150: 1679349 | E150: CHILATA | F150: Inicial | G150: Educación Básica Regular | H150: A1 - Pública - Sector Educación | I150: 4 | J150: PLATERIA | K150: Rural 2 | L150: 144 | M150: 133
A151: 134 | B151: PUNO | C151: PORTEÑO | D151: 0229526 | E151: 192 | F151: Inicial | G151: Educación Básica Regular | H151: A1 - Pública - Sector Educación | I151: 202 | J151: PUNO | K151: Urbana | L151: 3878.4 | M151: 134
A152: 135 | B152: PUNO | C152: PUNO | D152: 0229575 | E152: 197 | F152: Inicial | G152: Educación Básica Regular | H152: A1 - Pública - Sector Educación | I152: 233 | J152: PUNO | K152: Urbana | L152: 4473.6 | M152: 135
A153: 136 | B153: PUNO | C153: HACIENDA COLLACACHI | D153: 0229633 | E153: 203 | F153: Inicial | G153: Educación Básica Regular | H153: A1 - Pública - Sector Educación | I153: 9 | J153: PUNO | K153: Rural 2 | L153: 324 | M153: 136
A154: 137 | B154: PUNO | C154: LAYKAKOTA | D154: 0229682 | E154: 208 | F154: Inicial | G154: Educación Básica Regular | H154: A1 - Pública - Sector Educación | I154: 137 | J154: PUNO | K154: Urbana | L154: 2630.4 | M154: 137
A155: 138 | B155: PUNO | C155: PUNO | D155: 0506733 | E155: 224 | F155: Inicial | G155: Educación Básica Regular | H155: A1 - Pública - Sector Educación | I155: 180 | J155: PUNO | K155: Urbana | L155: 3456 | M155: 138
A156: 139 | B156: PUNO | C156: MAGISTERIAL | D156: 0548511 | E156: 248 | F156: Inicial | G156: Educación Básica Regular | H156: A1 - Pública - Sector Educación | I156: 97 | J156: PUNO | K156: Urbana | L156: 1862.4 | M156: 139
A157: 140 | B157: PUNO | C157: ICHU | D157: 0548610 | E157: 249 | F157: Inicial | G157: Educación Básica Regular | H157: A1 - Pública - Sector Educación | I157: 7 | J157: PUNO | K157: Rural 3 | L157: 210 | M157: 140
A158: 141 | B158: PUNO | C158: CIUDAD UNIVERSITARIA | D158: 0506931 | E158: 252 | F158: Inicial | G158: Educación Básica Regular | H158: A1 - Pública - Sector Educación | I158: 121 | J158: PUNO | K158: Urbana | L158: 2323.2 | M158: 141
A159: 142 | B159: PUNO | C159: CHIMU | D159: 0520130 | E159: 253 | F159: Inicial | G159: Educación Básica Regular | H159: A1 - Pública - Sector Educación | I159: 7 | J159: PUNO | K159: Rural 3 | L159: 210 | M159: 142
A160: 143 | B160: PUNO | C160: CHANU CHANU ETAPA 1 | D160: 0506832 | E160: 254 | F160: Inicial | G160: Educación Básica Regular | H160: A1 - Pública - Sector Educación | I160: 21 | J160: PUNO | K160: Urbana | L160: 403.2 | M160: 143
A161: 144 | B161: PUNO | C161: CHANU CHANU ETAPA 1 | D161: 0574970 | E161: 255 | F161: Inicial | G161: Educación Básica Regular | H161: A1 - Pública - Sector Educación | I161: 258 | J161: PUNO | K161: Urbana | L161: 4953.6 | M161: 144
A162: 145 | B162: PUNO | C162: UROS CHULLUNI | D162: 0539353 | E162: 264 | F162: Inicial | G162: Educación Básica Regular | H162: A1 - Pública - Sector Educación | I162: 59 | J162: PUNO | K162: Rural 3 | L162: 1770 | M162: 145
A163: 146 | B163: PUNO | C163: BELLAVISTA | D163: 0574913 | E163: 270 | F163: Inicial | G163: Educación Básica Regular | H163: A1 - Pública - Sector Educación | I163: 130 | J163: PUNO | K163: Urbana | L163: 2496 | M163: 146
A164: 147 | B164: PUNO | C164: LAYKAKOTA | D164: 0618363 | E164: 274 | F164: Inicial | G164: Educación Básica Regular | H164: A1 - Pública - Sector Educación | I164: 80 | J164: PUNO | K164: Urbana | L164: 1536 | M164: 147
A165: 148 | B165: PUNO | C165: BARRIO LLAVINI | D165: 0618371 | E165: 275 | F165: Inicial | G165: Educación Básica Regular | H165: A1 - Pública - Sector Educación | I165: 61 | J165: PUNO | K165: Urbana | L165: 1171.2 | M165: 148
A166: 149 | B166: PUNO | C166: SANTIAGO CHEJONA | D166: 0618389 | E166: 276 | F166: Inicial | G166: Educación Básica Regular | H166: A1 - Pública - Sector Educación | I166: 60 | J166: PUNO | K166: Urbana | L166: 1152 | M166: 149
A167: 150 | B167: PUNO | C167: PUNO | D167: 0618397 | E167: 278 | F167: Inicial | G167: Educación Básica Regular | H167: A1 - Pública - Sector Educación | I167: 108 | J167: PUNO | K167: Urbana | L167: 2073.6 | M167: 150
A168: 151 | B168: PUNO | C168: PUNO | D168: 0618405 | E168: 279 | F168: Inicial | G168: Educación Básica Regular | H168: A1 - Pública - Sector Educación | I168: 99 | J168: PUNO | K168: Urbana | L168: 1900.8 | M168: 151
A169: 152 | B169: PUNO | C169: TORRES SAN CARLOS | D169: 0701490 | E169: 287 | F169: Inicial | G169: Educación Básica Regular | H169: A1 - Pública - Sector Educación | I169: 82 | J169: PUNO | K169: Urbana | L169: 1574.4 | M169: 152
A170: 153 | B170: PUNO | C170: SALCEDO | D170: 1023191 | E170: 288 | F170: Inicial | G170: Educación Básica Regular | H170: A1 - Pública - Sector Educación | I170: 21 | J170: PUNO | K170: Urbana | L170: 403.2 | M170: 153
A171: 154 | B171: PUNO | C171: PUNO | D171: 0701508 | E171: 290 | F171: Inicial | G171: Educación Básica Regular | H171: A1 - Pública - Sector Educación | I171: 71 | J171: PUNO | K171: Urbana | L171: 1363.2 | M171: 154
A172: 155 | B172: PUNO | C172: AZIRUNI | D172: 1023233 | E172: 294 | F172: Inicial | G172: Educación Básica Regular | H172: A1 - Pública - Sector Educación | I172: 169 | J172: PUNO | K172: Urbana | L172: 3244.8 | M172: 155
A173: 156 | B173: PUNO | C173: JAYLLIHUAYA | D173: 1023274 | E173: 296 | F173: Inicial | G173: Educación Básica Regular | H173: A1 - Pública - Sector Educación | I173: 14 | J173: PUNO | K173: Urbana | L173: 268.8 | M173: 156
A174: 157 | B174: PUNO | C174: SANTA ROSA | D174: 0701482 | E174: 322 | F174: Inicial | G174: Educación Básica Regular | H174: A1 - Pública - Sector Educación | I174: 71 | J174: PUNO | K174: Urbana | L174: 1363.2 | M174: 157
A175: 158 | B175: PUNO | C175: LOS ANDES | D175: 1023357 | E175: 325 | F175: Inicial | G175: Educación Básica Regular | H175: A1 - Pública - Sector Educación | I175: 22 | J175: PUNO | K175: Urbana | L175: 422.4 | M175: 158
A176: 159 | B176: PUNO | C176: PUNO | D176: 1023431 | E176: 327 | F176: Inicial | G176: Educación Básica Regular | H176: A1 - Pública - Sector Educación | I176: 62 | J176: PUNO | K176: Urbana | L176: 1190.4 | M176: 159
A177: 160 | B177: PUNO | C177: ALTO BELLAVISTA | D177: 1025576 | E177: 330 | F177: Inicial | G177: Educación Básica Regular | H177: A1 - Pública - Sector Educación | I177: 63 | J177: PUNO | K177: Urbana | L177: 1209.6 | M177: 160
A178: 161 | B178: PUNO | C178: SALCEDO | D178: 1154426 | E178: 332 | F178: Inicial | G178: Educación Básica Regular | H178: A1 - Pública - Sector Educación | I178: 20 | J178: PUNO | K178: Urbana | L178: 384 | M178: 161
A179: 162 | B179: PUNO | C179: 2 DE MAYO | D179: 0539056 | E179: 379 | F179: Inicial | G179: Educación Básica Regular | H179: A1 - Pública - Sector Educación | I179: 29 | J179: PUNO | K179: Urbana | L179: 556.8 | M179: 162
A180: 163 | B180: PUNO | C180: ISLA TUPIRI | D180: 1540210 | E180: 1205 | F180: Inicial | G180: Educación Básica Regular | H180: A1 - Pública - Sector Educación | I180: 15 | J180: PUNO | K180: Rural 1 | L180: 630 | M180: 163
A181: 164 | B181: PUNO | C181: PUNO | D181: 1556257 | E181: 1227 | F181: Inicial | G181: Educación Básica Regular | H181: A1 - Pública - Sector Educación | I181: 20 | J181: PUNO | K181: Urbana | L181: 384 | M181: 164
A182: 165 | B182: PUNO | C182: CHIMU | D182: 1679398 | E182: 70160 | F182: Inicial | G182: Educación Básica Regular | H182: A1 - Pública - Sector Educación | I182: 15 | J182: PUNO | K182: Rural 3 | L182: 450 | M182: 165
A183: 166 | B183: PUNO | C183: PUNO | D183: 1470970 | E183: 1190 ESTRELLITAS DEL SABER | F183: Inicial | G183: Educación Básica Regular | H183: A1 - Pública - Sector Educación | I183: 67 | J183: PUNO | K183: Urbana | L183: 1286.4 | M183: 166
A184: 167 | B184: PUNO | C184: PUNO | D184: 1525591 | E184: 1203 PASITOS DE ORO | F184: Inicial | G184: Educación Básica Regular | H184: A1 - Pública - Sector Educación | I184: 138 | J184: PUNO | K184: Urbana | L184: 2649.6 | M184: 167
A185: 168 | B185: PUNO | C185: AZIRUNI | D185: 1556323 | E185: 1211 CUIDAD JARDIN | F185: Inicial | G185: Educación Básica Regular | H185: A1 - Pública - Sector Educación | I185: 71 | J185: PUNO | K185: Urbana | L185: 1363.2 | M185: 168
A186: 169 | B186: PUNO | C186: MANTO NUEVA ESPERANZA | D186: 1556398 | E186: 1228 NUEVA ESPERANZA | F186: Inicial | G186: Educación Básica Regular | H186: A1 - Pública - Sector Educación | I186: 40 | J186: PUNO | K186: Urbana | L186: 768 | M186: 169
A187: 170 | B187: PUNO | C187: ALTO PUNO | D187: 1578483 | E187: 1231 RETOÑITOS | F187: Inicial | G187: Educación Básica Regular | H187: A1 - Pública - Sector Educación | I187: 31 | J187: PUNO | K187: Urbana | L187: 595.2 | M187: 170
A188: 171 | B188: PUNO | C188: PUNO | D188: 1621143 | E188: 1234 CAPULLITOS DE LA VIRGEN INMACULADA CONCEPCION | F188: Inicial | G188: Educación Básica Regular | H188: A1 - Pública - Sector Educación | I188: 24 | J188: PUNO | K188: Urbana | L188: 460.8 | M188: 171
A189: 172 | B189: PUNO | C189: MACHALLATA | D189: 1659788 | E189: 1294 DULCE INFANCIA | F189: Inicial | G189: Educación Básica Regular | H189: A1 - Pública - Sector Educación | I189: 38 | J189: PUNO | K189: Urbana | L189: 729.6 | M189: 172
A190: 173 | B190: PUNO | C190: ISLA CCAPI LOS UROS | D190: 1655026 | E190: 1305 SUMA K'ANTAWI | F190: Inicial | G190: Educación Básica Regular | H190: A1 - Pública - Sector Educación | I190: 29 | J190: PUNO | K190: Rural 1 | L190: 1218 | M190: 173
A191: 174 | B191: PUNO | C191: SAN ANTONIO | D191: 0229534 | E191: 193 CLUB DE LEONES | F191: Inicial | G191: Educación Básica Regular | H191: A1 - Pública - Sector Educación | I191: 258 | J191: PUNO | K191: Urbana | L191: 4953.6 | M191: 174
A192: 175 | B192: PUNO | C192: PUNO | D192: 0229559 | E192: 195 MARIA AUXILIADORA | F192: Inicial | G192: Educación Básica Regular | H192: A1 - Pública - Sector Educación | I192: 293 | J192: PUNO | K192: Urbana | L192: 5625.6 | M192: 175
A193: 176 | B193: PUNO | C193: PUNO | D193: 0229567 | E193: 196 GLORIOSO SAN CARLOS | F193: Inicial | G193: Educación Básica Regular | H193: A1 - Pública - Sector Educación | I193: 232 | J193: PUNO | K193: Urbana | L193: 4454.4 | M193: 176
A194: 177 | B194: PUNO | C194: JOSE ENCINAS | D194: 0229674 | E194: 207 JOSE ANTONIO ENCINAS | F194: Inicial | G194: Educación Básica Regular | H194: A1 - Pública - Sector Educación | I194: 133 | J194: =+B194 -> PUNO | K194: Urbana | L194: =+IF(K194="Rural",I194*2*12,IF(K194="Rural 1",I194*3.5*12,IF(K194="Rural 2",I194*3*12,IF(K194="Rural 3",I194*2.5*12,IF(K194="Urbana",I194*1.6*12,IF(K194="Urbana 1",I194*1.3*12,0)))))) -> 2553.6 | M194: 177
A195: 178 | B195: PUNO | C195: CHACARILLA DEL LAGO | D195: 0474353 | E195: 219 SANTA ROSA DE LIMA | F195: Inicial | G195: Educación Básica Regular | H195: A1 - Pública - Sector Educación | I195: 82 | J195: PUNO | K195: Urbana | L195: 1574.4 | M195: 178
A196: 179 | B196: PUNO | C196: VILLA COPA CABANA | D196: 1571462 | E196: 239 NIÑO JESUS DE PRAGA | F196: Inicial | G196: Educación Básica Regular | H196: A1 - Pública - Sector Educación | I196: 12 | J196: PUNO | K196: Urbana | L196: 230.4 | M196: 179
A197: 180 | B197: PUNO | C197: SAN MARTIN | D197: 0660258 | E197: 284 CARLOS DREYER | F197: Inicial | G197: Educación Básica Regular | H197: A1 - Pública - Sector Educación | I197: 68 | J197: PUNO | K197: Urbana | L197: 1305.6 | M197: 180
A198: 181 | B198: PUNO | C198: PORTEÑO | D198: 0706507 | E198: 285 GRAN UNIDAD ESCOLAR SAN CARLOS | F198: Inicial | G198: Educación Básica Regular | H198: A1 - Pública - Sector Educación | I198: 227 | J198: PUNO | K198: Urbana | L198: 4358.4 | M198: =+A198 -> 181
A199: 182 | B199: PUNO | C199: VILLA DEL LAGO | D199: 1023316 | E199: 324 DIVINO NIÑO JESUS | F199: Inicial | G199: Educación Básica Regular | H199: A1 - Pública - Sector Educación | I199: 165 | J199: PUNO | K199: Urbana | L199: 3168 | M199: 182
A200: 183 | B200: PUNO | C200: VICTORIA | D200: 1023399 | E200: 326 MANUEL NUÑEZ BUTRON | F200: Inicial | G200: Educación Básica Regular | H200: A1 - Pública - Sector Educación | I200: 166 | J200: PUNO | K200: Urbana | L200: 3187.2 | M200: 183
... 691 more rows
